Document Date,Purchase Order No,Line Item No,Supplier ID,Supplier Name,Pro Class,Pro Class Description,Description of Goods (Purpose of expenditure look up),Service/Department   (SAP Hierarchy Position),Expense Area (cost centre desc), Net Order Value Over 5000.00 (line item value shown here) ,GL Code,Cost Centre/WBS
20/07/2022,ZAV710570,1,12351,Getech,270000,Information Communication Technology  ,Information and Communications Technology,Corporate and Support Services,IT AVA Non - SLA," 4,290.00 ",402001,13001
20/07/2022,ZAV710570,2,12351,Getech,270000,Information Communication Technology  ,Information and Communications Technology,Corporate and Support Services,IT AVA Non - SLA, 810.00 ,402001,13001
20/07/2022,ZAV710570,3,12351,Getech,270000,Information Communication Technology  ,Information and Communications Technology,Corporate and Support Services,IT AVA Non - SLA, 150.00 ,402001,13001
25/07/2022,ZAV710721,1,5535,Elementary Technology Ltd,210000,Furniture & Soft Furnishings  ,Furniture and Equipment,Corporate and Support Services,IT AVA Non - SLA," 1,275.00 ",400105,13001
25/07/2022,ZAV710721,2,5535,Elementary Technology Ltd,210000,Furniture & Soft Furnishings  ,Furniture and Equipment,Corporate and Support Services,IT AVA Non - SLA, 70.00 ,400105,13001
25/07/2022,ZAV710721,3,5535,Elementary Technology Ltd,210000,Furniture & Soft Furnishings  ,Furniture and Equipment,Corporate and Support Services,IT AVA Non - SLA, 625.00 ,400105,13001
25/07/2022,ZAV710721,4,5535,Elementary Technology Ltd,210000,Furniture & Soft Furnishings  ,Furniture and Equipment,Corporate and Support Services,IT AVA Non - SLA, 230.00 ,400105,13001
25/07/2022,ZAV710721,5,5535,Elementary Technology Ltd,210000,Furniture & Soft Furnishings  ,Furniture and Equipment,Corporate and Support Services,IT AVA Non - SLA, 395.00 ,400105,13001
25/07/2022,ZAV710721,6,5535,Elementary Technology Ltd,210000,Furniture & Soft Furnishings  ,Furniture and Equipment,Corporate and Support Services,IT AVA Non - SLA, 169.00 ,400105,13001
25/07/2022,ZAV710721,7,5535,Elementary Technology Ltd,210000,Furniture & Soft Furnishings  ,Furniture and Equipment,Corporate and Support Services,IT AVA Non - SLA, 65.00 ,400105,13001
25/07/2022,ZAV710721,8,5535,Elementary Technology Ltd,210000,Furniture & Soft Furnishings  ,Furniture and Equipment,Corporate and Support Services,IT AVA Non - SLA, 304.00 ,400105,13001
25/07/2022,ZAV710721,9,5535,Elementary Technology Ltd,210000,Furniture & Soft Furnishings  ,Furniture and Equipment,Corporate and Support Services,IT AVA Non - SLA, 65.00 ,400105,13001
25/07/2022,ZAV710721,10,5535,Elementary Technology Ltd,210000,Furniture & Soft Furnishings  ,Furniture and Equipment,Corporate and Support Services,IT AVA Non - SLA," 1,025.00 ",400105,13001
25/07/2022,ZAV710721,11,5535,Elementary Technology Ltd,210000,Furniture & Soft Furnishings  ,Furniture and Equipment,Corporate and Support Services,IT AVA Non - SLA, 30.00 ,400105,13001
25/07/2022,ZAV710721,12,5535,Elementary Technology Ltd,210000,Furniture & Soft Furnishings  ,Furniture and Equipment,Corporate and Support Services,IT AVA Non - SLA, 65.00 ,400105,13001
25/07/2022,ZAV710721,13,5535,Elementary Technology Ltd,210000,Furniture & Soft Furnishings  ,Furniture and Equipment,Corporate and Support Services,IT AVA Non - SLA, 16.00 ,400105,13001
25/07/2022,ZAV710721,14,5535,Elementary Technology Ltd,210000,Furniture & Soft Furnishings  ,Furniture and Equipment,Corporate and Support Services,IT AVA Non - SLA, 50.00 ,400105,13001
25/07/2022,ZAV710721,15,5535,Elementary Technology Ltd,210000,Furniture & Soft Furnishings  ,Furniture and Equipment,Corporate and Support Services,IT AVA Non - SLA, 445.00 ,400105,13001
25/07/2022,ZAV710721,16,5535,Elementary Technology Ltd,210000,Furniture & Soft Furnishings  ,Furniture and Equipment,Corporate and Support Services,IT AVA Non - SLA, 65.00 ,400105,13001
25/07/2022,ZAV710721,17,5535,Elementary Technology Ltd,210000,Furniture & Soft Furnishings  ,Furniture and Equipment,Corporate and Support Services,IT AVA Non - SLA, 50.00 ,400105,13001
25/07/2022,ZAV710721,18,5535,Elementary Technology Ltd,210000,Furniture & Soft Furnishings  ,Furniture and Equipment,Corporate and Support Services,IT AVA Non - SLA, 99.00 ,400105,13001
29/09/2022,ZAV713611,1,14149,Smoothwall Ltd,181800,Environmental Services Technical Equipment ,Furniture and Equipment,Corporate and Support Services,IT AVA Service," 54,851.56 ",400110,11417
15/07/2022,ZES710377,1,544,Phoenix Software Ltd,270000,Information Communication Technology  ,Information and Communications Technology,Services to Place,Property Client Acct, 693.00 ,402010,12328
15/07/2022,ZES710377,2,544,Phoenix Software Ltd,270000,Information Communication Technology  ,Information and Communications Technology,Services to People,RAA Adoption Count, 693.00 ,402010,12957
15/07/2022,ZES710377,3,544,Phoenix Software Ltd,270000,Information Communication Technology  ,Information and Communications Technology,Corporate and Support Services,POD Communications, 693.00 ,402010,11323
15/07/2022,ZES710377,4,544,Phoenix Software Ltd,270000,Information Communication Technology  ,Information and Communications Technology,Corporate and Support Services,Legal Services," 1,896.83 ",402010,11117
15/07/2022,ZES710377,5,544,Phoenix Software Ltd,270000,Information Communication Technology  ,Information and Communications Technology,Corporate and Support Services,Democratic Services, 291.82 ,402010,11100
15/07/2022,ZES710377,6,544,Phoenix Software Ltd,270000,Information Communication Technology  ,Information and Communications Technology,Corporate and Support Services,Strategy & Design," 1,021.37 ",402010,12642
15/07/2022,ZES710377,7,544,Phoenix Software Ltd,270000,Information Communication Technology  ,Information and Communications Technology,Corporate and Support Services,Strategy & Design," 2,072.70 ",402010,12642
15/07/2022,ZES710377,8,544,Phoenix Software Ltd,270000,Information Communication Technology  ,Information and Communications Technology,Corporate and Support Services,POD Communications, 296.10 ,402010,11323
15/07/2022,ZES710377,9,544,Phoenix Software Ltd,270000,Information Communication Technology  ,Information and Communications Technology,Corporate and Support Services,Strategy & Design, 296.10 ,402010,12642
03/08/2022,ZES711123,1,35,CBC Computer Systems Ltd,270000,Information Communication Technology  ,Information and Communications Technology,Corporate and Support Services,IT Telephony," 5,690.85 ",402060,12522
03/08/2022,ZES711123,2,35,CBC Computer Systems Ltd,270000,Information Communication Technology  ,Information and Communications Technology,Corporate and Support Services,IT Telephony, 262.35 ,402060,12522
03/08/2022,ZES711124,1,544,Phoenix Software Ltd,270000,Information Communication Technology  ,Information and Communications Technology,Corporate and Support Services,IT Infrastructure," 2,949.92 ",402002,11324
03/08/2022,ZES711124,2,544,Phoenix Software Ltd,270000,Information Communication Technology  ,Information and Communications Technology,Corporate and Support Services,IT Infrastructure," 4,737.89 ",402002,11324
03/08/2022,ZES711124,3,544,Phoenix Software Ltd,270000,Information Communication Technology  ,Information and Communications Technology,Corporate and Support Services,IT Infrastructure, 934.41 ,402002,11324
03/08/2022,ZES711124,4,544,Phoenix Software Ltd,270000,Information Communication Technology  ,Information and Communications Technology,Corporate and Support Services,IT Infrastructure," 5,657.99 ",402002,11324
03/08/2022,ZES711124,5,544,Phoenix Software Ltd,270000,Information Communication Technology  ,Information and Communications Technology,Corporate and Support Services,IT Infrastructure," 6,119.23 ",402002,11324
09/08/2022,ZES711385,1,15110,WCL (UK) Ltd T/A Everything IC,270000,Information Communication Technology  ,Information and Communications Technology,Corporate and Support Services,IT Main," 79,327.00 ",402060,11073
09/08/2022,ZES711385,2,15110,WCL (UK) Ltd T/A Everything IC,270000,Information Communication Technology  ,Information and Communications Technology,Corporate and Support Services,IT Main," 4,222.80 ",402060,11073
02/09/2022,ZES712355,1,28,Bechtle Direct Ltd,270000,Information Communication Technology  ,Information and Communications Technology,Corporate and Support Services,IT Infrastructure," 24,998.51 ",402001,11324
15/09/2022,ZES712942,1,544,Phoenix Software Ltd,270000,Information Communication Technology  ,Information and Communications Technology,Corporate and Support Services,IT Microsoft," 4,869.00 ",402001,13091
15/09/2022,ZES712942,2,544,Phoenix Software Ltd,270000,Information Communication Technology  ,Information and Communications Technology,Corporate and Support Services,IT Microsoft," 8,034.00 ",402001,13091
27/09/2022,ZES713401,1,6194,ESTEEM SYSTEMS LTD,181800,Environmental Services Technical Equipment ,Furniture and Equipment,Corporate and Support Services,IT Traded (SHG)," 1,688.43 ",400110,12106
27/09/2022,ZES713401,2,6194,ESTEEM SYSTEMS LTD,181800,Environmental Services Technical Equipment ,Furniture and Equipment,Corporate and Support Services,IT Traded (SHG)," 4,583.69 ",400110,12106
27/09/2022,ZES713401,3,6194,ESTEEM SYSTEMS LTD,181800,Environmental Services Technical Equipment ,Furniture and Equipment,Corporate and Support Services,IT Traded (SHG)," 1,513.89 ",400110,12106
27/09/2022,ZES713401,4,6194,ESTEEM SYSTEMS LTD,181800,Environmental Services Technical Equipment ,Furniture and Equipment,Corporate and Support Services,IT Traded (SHG), 485.03 ,400110,12106
29/09/2022,ZES713612,1,544,Phoenix Software Ltd,270000,Information Communication Technology  ,Information and Communications Technology,Corporate and Support Services,IT Microsoft," 17,496.00 ",402001,13091
29/09/2022,ZES713612,2,544,Phoenix Software Ltd,270000,Information Communication Technology  ,Information and Communications Technology,Corporate and Support Services,IT Microsoft," 40,968.48 ",402001,13091
29/09/2022,ZES713612,3,544,Phoenix Software Ltd,270000,Information Communication Technology  ,Information and Communications Technology,Corporate and Support Services,IT Microsoft," 8,100.00 ",402001,13091
29/09/2022,ZES713612,4,544,Phoenix Software Ltd,270000,Information Communication Technology  ,Information and Communications Technology,Corporate and Support Services,IT Microsoft," 1,194.00 ",402001,13091
29/09/2022,ZES713612,5,544,Phoenix Software Ltd,270000,Information Communication Technology  ,Information and Communications Technology,Corporate and Support Services,IT Microsoft, 82.80 ,402001,13091
29/09/2022,ZES713612,6,544,Phoenix Software Ltd,270000,Information Communication Technology  ,Information and Communications Technology,Corporate and Support Services,IT Microsoft," 8,759.12 ",402001,13091
29/09/2022,ZES713612,7,544,Phoenix Software Ltd,270000,Information Communication Technology  ,Information and Communications Technology,Corporate and Support Services,IT Microsoft," 14,832.00 ",402001,13091
29/09/2022,ZES713612,8,544,Phoenix Software Ltd,270000,Information Communication Technology  ,Information and Communications Technology,Corporate and Support Services,IT Microsoft, 42.00 ,402001,13091
29/09/2022,ZES713612,9,544,Phoenix Software Ltd,270000,Information Communication Technology  ,Information and Communications Technology,Corporate and Support Services,IT Microsoft," 10,876.80 ",402001,13091
29/09/2022,ZES713612,10,544,Phoenix Software Ltd,270000,Information Communication Technology  ,Information and Communications Technology,Corporate and Support Services,IT Microsoft," 38,880.00 ",402001,13091
29/09/2022,ZES713612,11,544,Phoenix Software Ltd,270000,Information Communication Technology  ,Information and Communications Technology,Corporate and Support Services,IT Microsoft, 566.10 ,402001,13091
29/09/2022,ZES713612,12,544,Phoenix Software Ltd,270000,Information Communication Technology  ,Information and Communications Technology,Corporate and Support Services,IT Microsoft," 3,480.00 ",402001,13091
29/09/2022,ZES713612,13,544,Phoenix Software Ltd,270000,Information Communication Technology  ,Information and Communications Technology,Corporate and Support Services,IT Microsoft," 462,944.52 ",402001,13091
29/09/2022,ZES713612,14,544,Phoenix Software Ltd,270000,Information Communication Technology  ,Information and Communications Technology,Corporate and Support Services,IT Microsoft," 203,296.08 ",402001,13091
29/09/2022,ZES713612,15,544,Phoenix Software Ltd,270000,Information Communication Technology  ,Information and Communications Technology,Corporate and Support Services,IT Microsoft," 665,417.16 ",402001,13091
29/09/2022,ZES713612,16,544,Phoenix Software Ltd,270000,Information Communication Technology  ,Information and Communications Technology,Corporate and Support Services,IT Microsoft, 65.08 ,402001,13091
29/09/2022,ZES713612,17,544,Phoenix Software Ltd,270000,Information Communication Technology  ,Information and Communications Technology,Corporate and Support Services,IT Microsoft," 5,199.20 ",402001,13091
29/09/2022,ZES713612,18,544,Phoenix Software Ltd,270000,Information Communication Technology  ,Information and Communications Technology,Corporate and Support Services,IT Microsoft," 68,880.00 ",402001,13091
29/09/2022,ZES713612,19,544,Phoenix Software Ltd,270000,Information Communication Technology  ,Information and Communications Technology,Corporate and Support Services,IT Microsoft," 3,112.00 ",402001,13091
29/09/2022,ZES713612,20,544,Phoenix Software Ltd,270000,Information Communication Technology  ,Information and Communications Technology,Corporate and Support Services,IT Microsoft," 40,220.64 ",402001,13091
29/09/2022,ZES713612,21,544,Phoenix Software Ltd,270000,Information Communication Technology  ,Information and Communications Technology,Corporate and Support Services,IT Microsoft," 1,507.68 ",402001,13091
29/09/2022,ZES713612,22,544,Phoenix Software Ltd,270000,Information Communication Technology  ,Information and Communications Technology,Corporate and Support Services,IT Microsoft," 96,085.44 ",402001,13091
29/09/2022,ZES713612,23,544,Phoenix Software Ltd,270000,Information Communication Technology  ,Information and Communications Technology,Corporate and Support Services,IT Microsoft," 2,784.00 ",402001,13091
29/09/2022,ZES713612,24,544,Phoenix Software Ltd,270000,Information Communication Technology  ,Information and Communications Technology,Corporate and Support Services,IT Microsoft, 894.36 ,402001,13091
08/07/2022,ZFC710139,1,588,H Jenkinson & Co Ltd,210000,Furniture & Soft Furnishings  ,Furniture and Equipment,#N/A,#N/A," 8,707.18 ",400100,C.11502.113
25/07/2022,ZFC710720,1,1799,Stockport Homes,390000,"Works - Construction, Repair & Maintenance  ",Repairs and Maintenance,Services to Place,SPB Operational Est.," 45,237.82 ",200159,11662
19/08/2022,ZFC711845,1,3529,Totally Local Company Ltd,130000,Cleaning & Janitorial  ,Cleaning,Services to Place,SPB Operational Est.," 16,710.30 ",201602,11662
26/07/2022,ZHS710800,1,6967,Wilde Consultants Ltd,390000,"Works - Construction, Repair & Maintenance  ",Capital Expenditure - Works,#N/A,#N/A," 13,348.00 ",200311,C.11016.002
23/08/2022,ZHS711927,1,15163,Energy Biling Ltd,390000,"Works - Construction, Repair & Maintenance  ",Capital Expenditure - Works,#N/A,#N/A," 16,600.00 ",200311,C.11644.015
09/09/2022,ZSA712653,1,1339,Stockport NHS Foundation Trust,130000,Cleaning & Janitorial  ,Cleaning,Services to People,Millview Respite," 6,415.29 ",201602,11033
05/07/2022,ZSB709936,1,5981,EUROLYNX (TAXIS) LTD,381600,Vehicle Management Hire/Leasing ,Leasing /Transport Hire,Services to People,Highfields PRU," 5,466.45 ",300302,10329
05/09/2022,ZSB712449,1,1196,SMC Premier Cleaning ltd,130000,Cleaning & Janitorial  ,Cleaning,Services to People,Highfields PRU," 1,899.17 ",201601,10329
05/09/2022,ZSB712449,2,1196,SMC Premier Cleaning ltd,130000,Cleaning & Janitorial  ,Cleaning,Services to People,Highfields PRU," 1,899.17 ",201601,10329
05/09/2022,ZSB712449,3,1196,SMC Premier Cleaning ltd,130000,Cleaning & Janitorial  ,Cleaning,Services to People,Highfields PRU," 1,899.17 ",201601,10329
08/09/2022,ZSB712621,1,15074,Bespoke Shelters,181800,Environmental Services Technical Equipment ,Furniture and Equipment,Services to People,Highfields PRU," 4,140.00 ",400110,10329
08/09/2022,ZSB712621,2,15074,Bespoke Shelters,181800,Environmental Services Technical Equipment ,Furniture and Equipment,Services to People,Highfields PRU," 2,190.00 ",400110,10329
08/09/2022,ZSB712621,3,15074,Bespoke Shelters,181800,Environmental Services Technical Equipment ,Furniture and Equipment,Services to People,Highfields PRU," 6,750.00 ",400110,10329
08/09/2022,ZSB712649,1,15074,Bespoke Shelters,181800,Environmental Services Technical Equipment ,Furniture and Equipment,Services to People,Highfields PRU," 6,980.00 ",400110,10329
08/09/2022,ZSB712649,2,15074,Bespoke Shelters,181800,Environmental Services Technical Equipment ,Furniture and Equipment,Services to People,Highfields PRU," 1,880.00 ",400110,10329
09/09/2022,ZSB712667,1,15339,Aspen Woodwork Ltd,390000,"Works - Construction, Repair & Maintenance  ",Repairs and Maintenance,Services to People,Highfields PRU," 1,553.00 ",200123,10329
09/09/2022,ZSB712667,2,15339,Aspen Woodwork Ltd,390000,"Works - Construction, Repair & Maintenance  ",Repairs and Maintenance,Services to People,Highfields PRU," 2,948.00 ",200123,10329
09/09/2022,ZSB712667,3,15339,Aspen Woodwork Ltd,390000,"Works - Construction, Repair & Maintenance  ",Repairs and Maintenance,Services to People,Highfields PRU," 2,948.00 ",200123,10329
09/09/2022,ZSB712668,1,15339,Aspen Woodwork Ltd,390000,"Works - Construction, Repair & Maintenance  ",Repairs and Maintenance,Services to People,Highfields PRU," 2,595.00 ",200123,10329
09/09/2022,ZSB712668,2,15339,Aspen Woodwork Ltd,390000,"Works - Construction, Repair & Maintenance  ",Repairs and Maintenance,Services to People,Highfields PRU," 1,553.00 ",200123,10329
09/09/2022,ZSB712668,3,15339,Aspen Woodwork Ltd,390000,"Works - Construction, Repair & Maintenance  ",Repairs and Maintenance,Services to People,Highfields PRU," 1,553.00 ",200123,10329
09/09/2022,ZSB712668,4,15339,Aspen Woodwork Ltd,390000,"Works - Construction, Repair & Maintenance  ",Repairs and Maintenance,Services to People,Highfields PRU," 1,553.00 ",200123,10329
13/09/2022,ZSB712796,1,10897,Three Sixty SHG Ltd,390000,"Works - Construction, Repair & Maintenance  ",Repairs and Maintenance,Services to People,Highfields PRU, 220.00 ,200123,10329
13/09/2022,ZSB712796,2,10897,Three Sixty SHG Ltd,390000,"Works - Construction, Repair & Maintenance  ",Repairs and Maintenance,Services to People,Highfields PRU, 338.03 ,200123,10329
13/09/2022,ZSB712796,3,10897,Three Sixty SHG Ltd,390000,"Works - Construction, Repair & Maintenance  ",Repairs and Maintenance,Services to People,Highfields PRU, 356.00 ,200123,10329
13/09/2022,ZSB712796,4,10897,Three Sixty SHG Ltd,390000,"Works - Construction, Repair & Maintenance  ",Repairs and Maintenance,Services to People,Highfields PRU, 88.00 ,200123,10329
13/09/2022,ZSB712796,5,10897,Three Sixty SHG Ltd,390000,"Works - Construction, Repair & Maintenance  ",Repairs and Maintenance,Services to People,Highfields PRU, 129.00 ,200123,10329
13/09/2022,ZSB712796,6,10897,Three Sixty SHG Ltd,390000,"Works - Construction, Repair & Maintenance  ",Repairs and Maintenance,Services to People,Highfields PRU, 44.00 ,200123,10329
13/09/2022,ZSB712796,7,10897,Three Sixty SHG Ltd,390000,"Works - Construction, Repair & Maintenance  ",Repairs and Maintenance,Services to People,Highfields PRU," 3,090.00 ",200123,10329
13/09/2022,ZSB712796,8,10897,Three Sixty SHG Ltd,390000,"Works - Construction, Repair & Maintenance  ",Repairs and Maintenance,Services to People,Highfields PRU, 50.88 ,200123,10329
13/09/2022,ZSB712796,9,10897,Three Sixty SHG Ltd,390000,"Works - Construction, Repair & Maintenance  ",Repairs and Maintenance,Services to People,Highfields PRU, 44.00 ,200123,10329
13/09/2022,ZSB712796,10,10897,Three Sixty SHG Ltd,390000,"Works - Construction, Repair & Maintenance  ",Repairs and Maintenance,Services to People,Highfields PRU, 868.15 ,200123,10329
13/09/2022,ZSB712796,11,10897,Three Sixty SHG Ltd,390000,"Works - Construction, Repair & Maintenance  ",Repairs and Maintenance,Services to People,Highfields PRU, 85.97 ,200123,10329
13/09/2022,ZSB712796,12,10897,Three Sixty SHG Ltd,390000,"Works - Construction, Repair & Maintenance  ",Repairs and Maintenance,Services to People,Highfields PRU, 147.37 ,200123,10329
13/09/2022,ZSB712796,13,10897,Three Sixty SHG Ltd,390000,"Works - Construction, Repair & Maintenance  ",Repairs and Maintenance,Services to People,Highfields PRU, 130.14 ,200123,10329
13/09/2022,ZSB712796,14,10897,Three Sixty SHG Ltd,390000,"Works - Construction, Repair & Maintenance  ",Repairs and Maintenance,Services to People,Highfields PRU, 671.00 ,200123,10329
13/09/2022,ZSB712796,15,10897,Three Sixty SHG Ltd,390000,"Works - Construction, Repair & Maintenance  ",Repairs and Maintenance,Services to People,Highfields PRU, 119.58 ,200123,10329
13/09/2022,ZSB712796,16,10897,Three Sixty SHG Ltd,390000,"Works - Construction, Repair & Maintenance  ",Repairs and Maintenance,Services to People,Highfields PRU, 999.00 ,200123,10329
28/09/2022,ZSB713532,1,10897,Three Sixty SHG Ltd,390000,"Works - Construction, Repair & Maintenance  ",Repairs and Maintenance,Services to People,Highfields PRU," 7,820.00 ",200123,10329
28/09/2022,ZSB713532,2,10897,Three Sixty SHG Ltd,390000,"Works - Construction, Repair & Maintenance  ",Repairs and Maintenance,Services to People,Highfields PRU, 412.98 ,200123,10329
28/09/2022,ZSB713532,3,10897,Three Sixty SHG Ltd,390000,"Works - Construction, Repair & Maintenance  ",Repairs and Maintenance,Services to People,Highfields PRU," 7,010.00 ",200123,10329
28/09/2022,ZSB713533,1,1900,Broxap Ltd,181800,Environmental Services Technical Equipment ,Furniture and Equipment,Services to People,Highfields PRU," 9,246.00 ",400110,10329
30/08/2022,ZTR712138,1,10107,Chipside Limited,280000,Legal Services  ,Fees and Charges,Services to Place,Car Parks Admin," 5,000.00 ",401025,10005
01/07/2022,ZZC709763,1,9891,Link Maker Systems Ltd.,200000,Financial Services  ,Fees and Charges,Services to People,RAA Adoption Count," 47,488.25 ",402401,12957
05/07/2022,ZZC709868,1,11722,TheBigWord Interpreting Svcs L,261100,Human Resources Interpretation & Translation ,Professional Fees,Services to People,Incl - S.I.U - Perip," 100,000.00 ",401023,10307
05/07/2022,ZZC709925,1,8423,SMS Coaching Limited,261500,Human Resources Training & Conferences ,Fees and Charges,Services to People,SEN Independent Sch," 28,500.00 ",401024,10372
06/07/2022,ZZC710050,1,2816,The Fostering Network,390000,"Works - Construction, Repair & Maintenance  ",Fees and Charges,Services to People,FP - Fostering Staff," 10,074.00 ",401021,11489
07/07/2022,ZZC710113,1,12675,Tiptoes Child Therapy Services,999999,Fees and Charges,Fees and Charges,Services to People,RAA - ASF Grant," 5,000.00 ",401035,12968
07/07/2022,ZZC710117,1,12675,Tiptoes Child Therapy Services,999999,Fees and Charges,Fees and Charges,Services to People,RAA - ASF Grant," 5,000.00 ",401035,12968
08/07/2022,ZZC710172,1,12723,Chrysalis Associates Ltd,999999,Fees and Charges,Fees and Charges,Services to People,RAA - ASF Grant," 5,000.00 ",401035,12968
21/07/2022,ZZC710614,1,12706,NEW ROOTS THERAPY NW,999999,Fees and Charges,Fees and Charges,Services to People,RAA - ASF Grant," 5,000.00 ",401035,12968
29/07/2022,ZZC710987,1,12298,One Education Ltd,999999,Fees and Charges,Fees and Charges,Services to People,RAA - ASF Grant," 10,000.00 ",401035,12968
29/07/2022,ZZC710988,1,12106,KMS Media,190000,Facilities & Management Services  ,Office Expenses,Services to People,RAA Adoption Count," 5,950.00 ",400700,12957
07/08/2022,ZZC711301,1,12298,One Education Ltd,260000,Human Resources  ,Other Payments,Services to People,RAA - Ctr Excellence," 64,975.00 ",100304,12967
08/08/2022,ZZC711327,1,5555,MANCHESTER DEAF CENTRE LTD,261100,Human Resources Interpretation & Translation ,Professional Fees,Services to People,Incl - S.I.U - Perip," 5,585.75 ",401023,10307
10/08/2022,ZZC711436,1,15204,RBWA - I Choose Freedom,320000,Social Community Care Supplies & Services  ,Care Payments,Services to People,H&R Client Spend," 5,000.00 ",530360,13143
10/08/2022,ZZC711436,2,15204,RBWA - I Choose Freedom,320000,Social Community Care Supplies & Services  ,Care Payments,Services to People,H&R Client Spend, 25.00 ,530360,13143
10/08/2022,ZZC711441,1,14063,TSOM Group,261500,Human Resources Training & Conferences ,Fees and Charges,Services to People,H&R Client Spend," 8,580.00 ",401024,13143
12/08/2022,ZZC711604,1,13510,Children's Therapy Solutions,999999,Fees and Charges,Fees and Charges,Services to People,RAA - ASF Grant," 5,488.00 ",401035,12968
12/08/2022,ZZC711614,1,12675,Tiptoes Child Therapy Services,999999,Fees and Charges,Fees and Charges,Services to People,RAA - ASF Grant," 5,000.00 ",401035,12968
15/08/2022,ZZC711659,1,15293,James Stephens Therapy,999999,Fees and Charges,Fees and Charges,Services to People,RAA - ASF Grant," 8,454.00 ",401035,12968
15/08/2022,ZZC711669,1,8766,ADOPTION MATTERS NORTHWEST,999999,Fees and Charges,Fees and Charges,Services to People,RAA - ASF Grant," 7,379.90 ",401035,12968
18/08/2022,ZZC711830,1,12675,Tiptoes Child Therapy Services,999999,Fees and Charges,Fees and Charges,Services to People,RAA - ASF Grant," 5,000.00 ",401035,12968
23/08/2022,ZZC711929,1,15284,Life Skills Hub Limited,261500,Human Resources Training & Conferences ,Fees and Charges,Services to People,GO/HG Client spend," 6,300.00 ",401024,13147
20/09/2022,ZZC713096,1,5555,MANCHESTER DEAF CENTRE LTD,261100,Human Resources Interpretation & Translation ,Professional Fees,Services to People,Incl - S.I.U - Perip," 5,611.61 ",401023,10307
27/09/2022,ZZC713457,1,12675,Tiptoes Child Therapy Services,999999,Fees and Charges,Fees and Charges,Services to People,RAA - ASF Grant," 5,000.00 ",401035,12968
28/09/2022,ZZC713516,1,12706,NEW ROOTS THERAPY NW,999999,Fees and Charges,Fees and Charges,Services to People,RAA - ASF Grant," 5,000.00 ",401035,12968
28/09/2022,ZZC713517,1,12723,Chrysalis Associates Ltd,999999,Fees and Charges,Fees and Charges,Services to People,RAA - ASF Grant," 10,000.00 ",401035,12968
01/07/2022,ZZH709751,1,178,Trafford Council,999999,Fees and Charges,Fees and Charges,Corporate and Support Services,STaR Procurement," 413,792.00 ",402407,11136
01/07/2022,ZZH709768,1,4190,Derbyshire County Council,170000,Education  ,Third party payments - Public Sector,Services to People,OLA pupils," 12,975.00 ",500304,10371
01/07/2022,ZZH709770,1,4190,Derbyshire County Council,170000,Education  ,Third party payments - Public Sector,Services to People,OLA pupils," 9,863.50 ",500304,10371
01/07/2022,ZZH709771,1,4190,Derbyshire County Council,170000,Education  ,Third party payments - Public Sector,Services to People,OLA pupils," 8,649.00 ",500304,10371
01/07/2022,ZZH709772,1,4190,Derbyshire County Council,170000,Education  ,Third party payments - Public Sector,Services to People,OLA pupils," 9,863.50 ",500304,10371
01/07/2022,ZZH709773,1,4190,Derbyshire County Council,170000,Education  ,Third party payments - Public Sector,Services to People,OLA pupils," 8,649.00 ",500304,10371
01/07/2022,ZZH709774,1,4190,Derbyshire County Council,170000,Education  ,Third party payments - Public Sector,Services to People,OLA pupils," 14,622.55 ",500304,10371
01/07/2022,ZZH709775,1,4190,Derbyshire County Council,170000,Education  ,Third party payments - Public Sector,Services to People,OLA pupils," 9,863.50 ",500304,10371
01/07/2022,ZZH709800,1,683,AECOM Limited,150000,Consultancy   ,Professional Fees,#N/A,#N/A," 57,207.60 ",401007,C.00716.201
04/07/2022,ZZH709846,1,5535,Elementary Technology Ltd,270000,Information Communication Technology  ,Information and Communications Technology,Services to Place,Contin Educ Service," 15,942.00 ",402001,10511
05/07/2022,ZZH709893,1,10349,InterWorks Europe Limited,270000,Information Communication Technology  ,Information and Communications Technology,Corporate and Support Services,Business Intelligenc," 16,190.00 ",402001,11872
05/07/2022,ZZH709929,1,6748,GEORGE COX & SONS LTD,390000,Supplies and services,Supplies and services,Services to Place,Highway Structs R+R," 9,862.01 ",401600,11975
05/07/2022,ZZH709956,1,5214,WSP GROUP PLC,150000,Consultancy   ,Professional Fees,#N/A,#N/A," 9,328.00 ",401007,C.00466.002
05/07/2022,ZZH709958,1,1799,Stockport Homes,290000,Arts & Leisure Services  ,Publicity and Promotion,Services to People,GMCA CS Grant," 18,357.82 ",401801,11505
06/07/2022,ZZH709966,1,757,Transport for Greater Manchest,181800,Environmental Services Technical Equipment ,Furniture and Equipment,#N/A,#N/A," 11,340.00 ",400110,C.00658
06/07/2022,ZZH710006,1,15227,XYLA Health & Social Services,150000,Consultancy   ,Professional Fees,Services to People,Safeguarding Adults," 8,850.00 ",401020,12424
06/07/2022,ZZH710016,1,6748,GEORGE COX & SONS LTD,390000,Supplies and services,Supplies and services,#N/A,#N/A," 222,895.85 ",401600,C.01179.203
06/07/2022,ZZH710051,1,12905,Art attack community group,320000,Social Community Care Supplies & Services  ,Third party payments - Private/Voluntary Sector,Services to People,Holiday Activities," 7,000.00 ",402403,13100
06/07/2022,ZZH710052,1,14854,Active Kids Education Ltd,320000,Social Community Care Supplies & Services  ,Third party payments - Private/Voluntary Sector,Services to People,Holiday Activities," 17,250.00 ",402403,13100
07/07/2022,ZZH710065,1,1339,Stockport NHS Foundation Trust,999999,Fees and Charges,Fees and Charges,Services to People,VST - PPG," 22,957.00 ",401035,12777
07/07/2022,ZZH710066,1,1339,Stockport NHS Foundation Trust,999999,Fees and Charges,Fees and Charges,Services to People,VST - PPG," 24,005.00 ",401035,12777
07/07/2022,ZZH710067,1,13856,Make a Difference t/a Nadia Al,320000,Social Community Care Supplies & Services  ,Third party payments - Private/Voluntary Sector,Services to People,Holiday Activities," 7,000.00 ",402403,13100
07/07/2022,ZZH710077,1,15103,Glenbarrow Limited,390000,"Works - Construction, Repair & Maintenance  ",Repairs and Maintenance,#N/A,#N/A," 22,585.00 ",200123,C.11502.136
07/07/2022,ZZH710078,1,15103,Glenbarrow Limited,390000,"Works - Construction, Repair & Maintenance  ",Repairs and Maintenance,#N/A,#N/A," 6,802.75 ",200123,C.11502.136
07/07/2022,ZZH710085,1,12180,Acorn Care and Education,261500,Human Resources Training & Conferences ,Fees and Charges,Services to People,SEN Independent Sch," 53,300.00 ",401024,10372
07/07/2022,ZZH710087,1,11089,Ian Shaftoe ta IDS Land Survey,390000,Supplies and services,Supplies and services,#N/A,#N/A," 9,800.00 ",401600,C.01539.201
07/07/2022,ZZH710097,1,13223,A Pacini Ltd,261400,Human Resources Temporary & Agency Staff ,Agency Staff,Services to Place,Property Client Acct," 5,414.25 ",100290,12328
07/07/2022,ZZH710105,1,7925,Macclesfield College,320000,Social Community Care Supplies & Services  ,Third party payments - Private/Voluntary Sector,Services to People,Top-up Fund Post 16," 10,367.25 ",402403,12724
07/07/2022,ZZH710108,1,14240,Fast Entry Lock Smiths Ltd,390000,"Works - Construction, Repair & Maintenance  ",Repairs and Maintenance,Services to People,Domestic Abuse," 5,000.00 ",200123,12852
11/07/2022,ZZH710188,1,15241,UK Sports FC,320000,Social Community Care Supplies & Services  ,Third party payments - Private/Voluntary Sector,Services to People,Holiday Activities," 8,000.00 ",402403,13100
11/07/2022,ZZH710189,1,15241,UK Sports FC,320000,Social Community Care Supplies & Services  ,Third party payments - Private/Voluntary Sector,Services to People,Holiday Activities," 8,000.00 ",402403,13100
11/07/2022,ZZH710190,1,11619,Progressive Sports (South Manc,320000,Social Community Care Supplies & Services  ,Third party payments - Private/Voluntary Sector,Services to People,Holiday Activities," 18,800.00 ",402403,13100
11/07/2022,ZZH710191,1,15242,Primary Sports Coaching Ltd (P,320000,Social Community Care Supplies & Services  ,Third party payments - Private/Voluntary Sector,Services to People,Holiday Activities," 12,048.00 ",402403,13100
11/07/2022,ZZH710192,1,15243,Didsbury FC,320000,Social Community Care Supplies & Services  ,Third party payments - Private/Voluntary Sector,Services to People,Holiday Activities," 8,520.00 ",402403,13100
11/07/2022,ZZH710193,1,15240,AutiSK,320000,Social Community Care Supplies & Services  ,Third party payments - Private/Voluntary Sector,Services to People,Holiday Activities," 8,736.00 ",402403,13100
11/07/2022,ZZH710198,1,11568,The Birches School,170000,Education  ,Third party payments - Public Sector,Services to People,OLA pupils," 8,810.00 ",500304,10371
11/07/2022,ZZH710199,1,6748,GEORGE COX & SONS LTD,390000,Supplies and services,Supplies and services,#N/A,#N/A," 56,673.79 ",401600,C.10523.193
12/07/2022,ZZH710242,1,3529,Totally Local Company Ltd,390000,"Works - Construction, Repair & Maintenance  ",Capital Expenditure - Works,#N/A,#N/A," 18,662.36 ",200304,C.01477.203
12/07/2022,ZZH710244,1,15232,Howard Stott Demolition Ltd,181000,Environmental Services Demolition & Asbestos Removal ,Capital Expenditure - Works,#N/A,#N/A," 107,000.00 ",200308,C.10971
12/07/2022,ZZH710249,1,3529,Totally Local Company Ltd,390000,Supplies and services,Supplies and services,#N/A,#N/A," 5,310.00 ",401600,C.01314.202
12/07/2022,ZZH710250,1,3529,Totally Local Company Ltd,390000,Supplies and services,Supplies and services,#N/A,#N/A," 5,310.00 ",401600,C.01314.202
12/07/2022,ZZH710252,1,3529,Totally Local Company Ltd,390000,"Works - Construction, Repair & Maintenance  ",Capital Expenditure - Works,#N/A,#N/A," 5,492.00 ",200304,C.01378.203
12/07/2022,ZZH710253,1,3529,Totally Local Company Ltd,240000,Horticultural  ,Grounds Maintenance,#N/A,#N/A," 20,000.00 ",202032,C.01451.203
12/07/2022,ZZH710255,1,1339,Stockport NHS Foundation Trust,310000,Healthcare  ,Third party payments - Public Sector,Services to People,DP - CEAS," 99,925.00 ",500401,12189
12/07/2022,ZZH710256,1,3529,Totally Local Company Ltd,240000,Horticultural  ,Grounds Maintenance,#N/A,#N/A," 82,593.14 ",202032,C.01451.203
12/07/2022,ZZH710257,1,15248,Renaissance Ltd,150000,Consultancy   ,Professional Fees,#N/A,#N/A," 15,500.00 ",401020,C.10932.005
12/07/2022,ZZH710258,1,1104,Age UK Stockport,320000,Social Community Care Supplies & Services  ,Third party payments - Private/Voluntary Sector,Corporate and Support Services,Neighbourhood Inclus," 20,000.00 ",402403,12900
12/07/2022,ZZH710258,2,1104,Age UK Stockport,320000,Social Community Care Supplies & Services  ,Third party payments - Private/Voluntary Sector,Corporate and Support Services,Neighbourhood Inclus," 20,000.00 ",402403,12900
12/07/2022,ZZH710259,1,13732,SKylight Ltd,320000,Social Community Care Supplies & Services  ,Third party payments - Private/Voluntary Sector,Corporate and Support Services,Neighbourhood Inclus," 75,000.00 ",402403,12900
12/07/2022,ZZH710264,1,13041,YARAN NORTHWEST CIC,999999,Fees and Charges,Fees and Charges,Services to People,PH-Mental Wellbeing," 5,000.00 ",402404,12734
12/07/2022,ZZH710277,1,865,Bethell Construction Ltd,390000,Supplies and services,Supplies and services,#N/A,#N/A," 355,922.19 ",401600,C.01498.201
13/07/2022,ZZH710287,1,1642,Blachere Illumination UK Ltd,290000,Arts & Leisure Services  ,Publicity and Promotion,Services to Place,Borough Festive Ligh," 25,336.90 ",401801,12654
13/07/2022,ZZH710288,1,10363,Gala Lights Ltd,290000,Arts & Leisure Services  ,Publicity and Promotion,Services to Place,Borough Festive Ligh," 29,000.00 ",401801,12654
13/07/2022,ZZH710320,1,13856,Make a Difference t/a Nadia Al,320000,Social Community Care Supplies & Services  ,Third party payments - Private/Voluntary Sector,Corporate and Support Services,Com. Invest Fund," 2,500.00 ",402403,12979
13/07/2022,ZZH710320,2,13856,Make a Difference t/a Nadia Al,320000,Social Community Care Supplies & Services  ,Third party payments - Private/Voluntary Sector,Corporate and Support Services,Com. Invest Fund," 2,500.00 ",402403,12979
13/07/2022,ZZH710320,3,13856,Make a Difference t/a Nadia Al,320000,Social Community Care Supplies & Services  ,Third party payments - Private/Voluntary Sector,Corporate and Support Services,Com. Invest Fund," 2,500.00 ",402403,12979
13/07/2022,ZZH710320,4,13856,Make a Difference t/a Nadia Al,320000,Social Community Care Supplies & Services  ,Third party payments - Private/Voluntary Sector,Corporate and Support Services,Com. Invest Fund," 2,500.00 ",402403,12979
13/07/2022,ZZH710320,5,13856,Make a Difference t/a Nadia Al,320000,Social Community Care Supplies & Services  ,Third party payments - Private/Voluntary Sector,Corporate and Support Services,Com. Invest Fund, 900.00 ,402403,12979
13/07/2022,ZZH710320,6,13856,Make a Difference t/a Nadia Al,320000,Social Community Care Supplies & Services  ,Third party payments - Private/Voluntary Sector,Corporate and Support Services,Com. Invest Fund," 1,000.00 ",402403,12979
13/07/2022,ZZH710321,1,13856,Make a Difference t/a Nadia Al,320000,Social Community Care Supplies & Services  ,Third party payments - Private/Voluntary Sector,Corporate and Support Services,Com. Invest Fund," 1,250.00 ",402403,12979
13/07/2022,ZZH710321,2,13856,Make a Difference t/a Nadia Al,320000,Social Community Care Supplies & Services  ,Third party payments - Private/Voluntary Sector,Corporate and Support Services,Com. Invest Fund," 1,250.00 ",402403,12979
13/07/2022,ZZH710321,3,13856,Make a Difference t/a Nadia Al,320000,Social Community Care Supplies & Services  ,Third party payments - Private/Voluntary Sector,Corporate and Support Services,Com. Invest Fund," 1,250.00 ",402403,12979
13/07/2022,ZZH710321,4,13856,Make a Difference t/a Nadia Al,320000,Social Community Care Supplies & Services  ,Third party payments - Private/Voluntary Sector,Corporate and Support Services,Com. Invest Fund," 1,250.00 ",402403,12979
13/07/2022,ZZH710321,5,13856,Make a Difference t/a Nadia Al,320000,Social Community Care Supplies & Services  ,Third party payments - Private/Voluntary Sector,Corporate and Support Services,Com. Invest Fund, 900.00 ,402403,12979
13/07/2022,ZZH710321,6,13856,Make a Difference t/a Nadia Al,320000,Social Community Care Supplies & Services  ,Third party payments - Private/Voluntary Sector,Corporate and Support Services,Com. Invest Fund," 1,000.00 ",402403,12979
13/07/2022,ZZH710323,1,13856,Make a Difference t/a Nadia Al,320000,Social Community Care Supplies & Services  ,Third party payments - Private/Voluntary Sector,Corporate and Support Services,Com. Invest Fund," 1,250.00 ",402403,12979
13/07/2022,ZZH710323,2,13856,Make a Difference t/a Nadia Al,320000,Social Community Care Supplies & Services  ,Third party payments - Private/Voluntary Sector,Corporate and Support Services,Com. Invest Fund," 1,250.00 ",402403,12979
13/07/2022,ZZH710323,3,13856,Make a Difference t/a Nadia Al,320000,Social Community Care Supplies & Services  ,Third party payments - Private/Voluntary Sector,Corporate and Support Services,Com. Invest Fund," 1,250.00 ",402403,12979
13/07/2022,ZZH710323,4,13856,Make a Difference t/a Nadia Al,320000,Social Community Care Supplies & Services  ,Third party payments - Private/Voluntary Sector,Corporate and Support Services,Com. Invest Fund," 1,250.00 ",402403,12979
13/07/2022,ZZH710323,5,13856,Make a Difference t/a Nadia Al,320000,Social Community Care Supplies & Services  ,Third party payments - Private/Voluntary Sector,Corporate and Support Services,Com. Invest Fund, 900.00 ,402403,12979
13/07/2022,ZZH710323,6,13856,Make a Difference t/a Nadia Al,320000,Social Community Care Supplies & Services  ,Third party payments - Private/Voluntary Sector,Corporate and Support Services,Com. Invest Fund," 1,000.00 ",402403,12979
13/07/2022,ZZH710328,1,13856,Make a Difference t/a Nadia Al,320000,Social Community Care Supplies & Services  ,Third party payments - Private/Voluntary Sector,Corporate and Support Services,Com. Invest Fund," 1,750.00 ",402403,12979
13/07/2022,ZZH710328,2,13856,Make a Difference t/a Nadia Al,320000,Social Community Care Supplies & Services  ,Third party payments - Private/Voluntary Sector,Corporate and Support Services,Com. Invest Fund," 1,750.00 ",402403,12979
13/07/2022,ZZH710328,3,13856,Make a Difference t/a Nadia Al,320000,Social Community Care Supplies & Services  ,Third party payments - Private/Voluntary Sector,Corporate and Support Services,Com. Invest Fund," 1,750.00 ",402403,12979
13/07/2022,ZZH710328,4,13856,Make a Difference t/a Nadia Al,320000,Social Community Care Supplies & Services  ,Third party payments - Private/Voluntary Sector,Corporate and Support Services,Com. Invest Fund," 1,750.00 ",402403,12979
13/07/2022,ZZH710328,5,13856,Make a Difference t/a Nadia Al,320000,Social Community Care Supplies & Services  ,Third party payments - Private/Voluntary Sector,Corporate and Support Services,Com. Invest Fund, 900.00 ,402403,12979
13/07/2022,ZZH710328,6,13856,Make a Difference t/a Nadia Al,320000,Social Community Care Supplies & Services  ,Third party payments - Private/Voluntary Sector,Corporate and Support Services,Com. Invest Fund," 1,000.00 ",402403,12979
14/07/2022,ZZH710341,1,6748,GEORGE COX & SONS LTD,390000,Supplies and services,Supplies and services,#N/A,#N/A," 50,806.18 ",401600,C.10369.164
14/07/2022,ZZH710343,1,13860,Howard Lynn Property Ltd,261400,Human Resources Temporary & Agency Staff ,Agency Staff,Services to Place,Property Client Acct," 6,339.63 ",100290,12328
14/07/2022,ZZH710344,1,2260,RICS,270000,Information Communication Technology  ,Information and Communications Technology,Services to Place,Property Client Acct," 8,500.00 ",402001,12328
14/07/2022,ZZH710344,2,2260,RICS,270000,Information Communication Technology  ,Information and Communications Technology,Services to Place,Property Client Acct," 4,462.50 ",402001,12328
14/07/2022,ZZH710351,1,12351,Getech,270000,Information Communication Technology  ,Information and Communications Technology,Services to Place,Contin Educ Service," 16,095.00 ",402001,10511
14/07/2022,ZZH710358,1,3529,Totally Local Company Ltd,181800,Environmental Services Technical Equipment ,Furniture and Equipment,#N/A,#N/A," 10,623.44 ",400110,C.01190.202
14/07/2022,ZZH710368,1,11568,The Birches School,170000,Education  ,Third party payments - Public Sector,Services to People,OLA pupils," 7,865.00 ",500304,10371
14/07/2022,ZZH710369,1,1339,Stockport NHS Foundation Trust,310000,Healthcare  ,Third party payments - Public Sector,Services to People,SEN Specific support," 44,233.00 ",500402,10300
15/07/2022,ZZH710376,1,3535,Fairway Landscapes Ltd,391200,"Works - Construction, Repair & Maintenance Engineering ",Professional Fees,#N/A,#N/A," 6,606.00 ",401032,C.01378.203
15/07/2022,ZZH710378,1,928,MEL Research Ltd,261500,Human Resources Training & Conferences ,Fees and Charges,Corporate and Support Services,POD Workforce Dev," 18,000.00 ",401024,11888
15/07/2022,ZZH710378,2,928,MEL Research Ltd,261500,Human Resources Training & Conferences ,Fees and Charges,Corporate and Support Services,POD Workforce Dev," 16,000.00 ",401024,11888
18/07/2022,ZZH710452,1,10670,Osborne Richardson,150000,Consultancy   ,Professional Fees,Services to Place,Food & Safety," 35,000.00 ",401007,10912
18/07/2022,ZZH710454,1,757,Transport for Greater Manchest,170000,Education  ,Welfare Payments,Services to People,SS-FreeSclTrans-Sec," 1,261.00 ",530102,10430
18/07/2022,ZZH710454,2,757,Transport for Greater Manchest,170000,Education  ,Welfare Payments,Services to People,SS-FreeSclTrans-Sec," 137,575.00 ",530102,10430
18/07/2022,ZZH710479,1,3529,Totally Local Company Ltd,290000,Arts & Leisure Services  ,Publicity and Promotion,Services to Place,Borough Festive Ligh," 65,487.17 ",401801,12654
18/07/2022,ZZH710481,1,14617,Leicestershire Partnership NHS,181800,Environmental Services Technical Equipment ,Furniture and Equipment,Services to People,PIP COVID," 7,490.88 ",400110,13095
19/07/2022,ZZH710493,1,4369,Pennine Care NHS Trust,999999,Fees and Charges,Fees and Charges,Services to People,SNC," 17,135.82 ",402404,12929
19/07/2022,ZZH710494,1,9715,NHS GREATER MANCHESTER INTEGRA,260000,Human Resources  ,Other Payments,Services to People,Proactive Care," 563,233.00 ",100304,12829
19/07/2022,ZZH710495,1,9715,NHS GREATER MANCHESTER INTEGRA,260000,Human Resources  ,Other Payments,Services to People,Proactive Care," 333,367.00 ",100304,12829
19/07/2022,ZZH710525,1,3156,Creative Ideas In Print,320000,Social Community Care Supplies & Services  ,Care Payments,Corporate and Support Services,POD Communications," 26,991.92 ",530356,11323
19/07/2022,ZZH710526,1,3156,Creative Ideas In Print,320000,Social Community Care Supplies & Services  ,Care Payments,Corporate and Support Services,POD Communications," 26,991.92 ",530356,11323
19/07/2022,ZZH710527,1,12445,Barbour Logic Ltd,270000,Information Communication Technology  ,Information and Communications Technology,Services to Place,Car Parks Admin," 10,497.00 ",402001,10005
19/07/2022,ZZH710534,1,11014,Flowbird Smart City UK Limited,390000,"Works - Construction, Repair & Maintenance  ",Repairs and Maintenance,Services to Place,Car Parks Admin," 28,936.80 ",200123,10005
19/07/2022,ZZH710549,1,3156,Creative Ideas In Print,320000,Social Community Care Supplies & Services  ,Care Payments,Corporate and Support Services,POD Communications," 19,845.00 ",530356,11323
19/07/2022,ZZH710552,1,3529,Totally Local Company Ltd,390000,"Works - Construction, Repair & Maintenance  ",Capital Expenditure - Works,#N/A,#N/A," 58,168.98 ",200304,C.01284.203
19/07/2022,ZZH710561,1,757,Transport for Greater Manchest,390000,Supplies and services,Supplies and services,#N/A,#N/A," 65,000.00 ",401600,C.00718.203
19/07/2022,ZZH710567,1,6116,Atkins Limited,150000,Consultancy   ,Professional Fees,Services to Place,Feasibility," 15,100.80 ",401020,13062
20/07/2022,ZZH710594,1,14414,MEADOWS CARE LTD,261500,Human Resources Training & Conferences ,Fees and Charges,Services to People,SEN Independent Sch," 46,540.00 ",401024,10372
21/07/2022,ZZH710622,1,6748,GEORGE COX & SONS LTD,390000,Supplies and services,Supplies and services,#N/A,#N/A," 108,668.81 ",401600,C.10427.109
21/07/2022,ZZH710631,1,3529,Totally Local Company Ltd,390000,"Works - Construction, Repair & Maintenance  ",Capital Expenditure - Works,#N/A,#N/A," 15,993.69 ",200304,C.01190.203
21/07/2022,ZZH710637,1,3529,Totally Local Company Ltd,390000,"Works - Construction, Repair & Maintenance  ",Capital Expenditure - Works,#N/A,#N/A," 19,435.43 ",200304,C.01456.203
21/07/2022,ZZH710649,1,10985,Broadstones School Ltd,261500,Human Resources Training & Conferences ,Fees and Charges,Services to People,SEN Independent Sch," 52,000.00 ",401024,10372
21/07/2022,ZZH710653,1,15254,PIE: Pursuing Individual Excel,320000,Social Community Care Supplies & Services  ,Third party payments - Private/Voluntary Sector,Services to People,Holiday Activities," 8,430.00 ",402403,13100
22/07/2022,ZZH710690,1,5131,FUTURE DESIGN CONSULTANTS,150000,Consultancy   ,Professional Fees,Services to Place,Investing in Growth," 5,380.00 ",401007,10102
22/07/2022,ZZH710690,2,5131,FUTURE DESIGN CONSULTANTS,150000,Consultancy   ,Professional Fees,Services to Place,Investing in Growth," 9,526.00 ",401007,10102
25/07/2022,ZZH710732,1,6967,Wilde Consultants Ltd,150000,Consultancy   ,Professional Fees,#N/A,#N/A," 166,737.75 ",401007,C.01498.201
25/07/2022,ZZH710733,1,6967,Wilde Consultants Ltd,140000,Clothing  ,Clothing Uniforms and Laundry,Services to Place,Network Assets Staff," 57,960.00 ",400604,11959
25/07/2022,ZZH710739,1,7820,GMCA - GMUTC,390000,"Works - Construction, Repair & Maintenance  ",Capital Expenditure - Works,#N/A,#N/A," 46,000.00 ",200304,C.01456.203
25/07/2022,ZZH710751,1,10638,Welfare Call (CFU) Ltd,999999,Fees and Charges,Fees and Charges,Services to People,VST - PPG," 10,740.60 ",401035,12777
25/07/2022,ZZH710759,1,1342,UK Container Maintenance Ltd,182020,Environmental Services Waste Management,Waste Management Equipment,Services to Place,Bulk Container," 3,451.00 ",400401,10883
25/07/2022,ZZH710759,2,1342,UK Container Maintenance Ltd,182020,Environmental Services Waste Management,Waste Management Equipment,Services to Place,Bulk Container," 1,015.00 ",400401,10883
25/07/2022,ZZH710759,3,1342,UK Container Maintenance Ltd,182020,Environmental Services Waste Management,Waste Management Equipment,Services to Place,Bulk Container, 561.00 ,400401,10883
25/07/2022,ZZH710766,1,2114,ADASS,200000,Financial Services  ,Fees and Charges,Services to People,Heads of Service," 15,000.00 ",402401,11590
25/07/2022,ZZH710770,1,3529,Totally Local Company Ltd,390000,Supplies and services,Supplies and services,#N/A,#N/A," 127,880.12 ",401600,C.01378.203
25/07/2022,ZZH710772,1,628,dv Life Leisure,290000,Arts & Leisure Services  ,Publicity and Promotion,Services to People,SC - Care Matters," 8,000.00 ",401801,11768
26/07/2022,ZZH710782,1,6748,GEORGE COX & SONS LTD,390000,Supplies and services,Supplies and services,#N/A,#N/A," 31,235.00 ",401600,C.10523.193
26/07/2022,ZZH710796,1,757,Transport for Greater Manchest,181800,Environmental Services Technical Equipment ,Furniture and Equipment,#N/A,#N/A," 6,600.00 ",400110,C.00468.201
26/07/2022,ZZH710806,1,15254,PIE: Pursuing Individual Excel,290000,Arts & Leisure Services  ,Publicity and Promotion,Services to People,Holiday Activities," 5,901.00 ",401801,13100
26/07/2022,ZZH710833,1,6748,GEORGE COX & SONS LTD,240000,Horticultural  ,Grounds Maintenance,Services to Place,Policy-Rights Of Way," 9,411.43 ",202030,10088
27/07/2022,ZZH710854,1,4272,Civica UK Ltd,270000,Information Communication Technology  ,Information and Communications Technology,Corporate and Support Services,IT Systems," 7,500.00 ",402001,12503
27/07/2022,ZZH710865,1,12445,Barbour Logic Ltd,270000,Information Communication Technology  ,Information and Communications Technology,Services to Place,Car Parks Admin," 7,004.00 ",402001,10005
27/07/2022,ZZH710872,1,15268,Anthesis (UK) Ltd,150000,Consultancy   ,Professional Fees,Services to Place,MDC Mayoral DC," 30,000.00 ",401007,13033
27/07/2022,ZZH710875,1,9453,Gaist Solutions Ltd,390000,"Works - Construction, Repair & Maintenance  ",Capital Expenditure - Works,#N/A,#N/A," 32,968.00 ",200304,C.01202.201
27/07/2022,ZZH710900,1,14805,Raw Creative (Yorkshire) Ltd,390000,Supplies and services,Supplies and services,#N/A,#N/A," 6,325.00 ",401600,C.01179.203
27/07/2022,ZZH710908,1,14737,Hatters Project Ltd,320000,Social Community Care Supplies & Services  ,Third party payments - Private/Voluntary Sector,Services to People,Holiday Activities," 10,500.00 ",402403,13100
28/07/2022,ZZH710956,1,1722,The Together Trust Centre,320000,Social Community Care Supplies & Services  ,Care Payments,Services to People,DP - Respite," 5,340.00 ",530335,11513
28/07/2022,ZZH710957,1,7025,CBRE Limited,150000,Consultancy   ,Professional Fees,Services to Place,Merseyway Shop Ctre," 2,500.00 ",401020,12866
28/07/2022,ZZH710957,2,7025,CBRE Limited,150000,Consultancy   ,Professional Fees,Services to Place,Merseyway Shop Ctre," 1,500.00 ",401020,12866
28/07/2022,ZZH710957,3,7025,CBRE Limited,150000,Consultancy   ,Professional Fees,Services to Place,Merseyway Shop Ctre," 2,500.00 ",401020,12866
01/08/2022,ZZH711000,1,14619,Constellia Public Limited,150000,Consultancy   ,Professional Fees,Corporate and Support Services,Business Intelligenc," 158,800.00 ",401007,11872
01/08/2022,ZZH711011,1,15279,Trailar Limited,381600,Vehicle Management Leasing ,Leasing /Transport Hire,Services to Place,Operational Support," 21,000.00 ",300401,10924
01/08/2022,ZZH711012,1,12367,Beech Hall School,261500,Human Resources Training & Conferences ,Fees and Charges,Services to People,SEN Independent Sch," 16,001.68 ",401024,10372
01/08/2022,ZZH711022,1,14243,Keys PCE Ltd,261500,Human Resources Training & Conferences ,Fees and Charges,Services to People,SEN Independent Sch," 26,013.00 ",401024,10372
01/08/2022,ZZH711023,1,14243,Keys PCE Ltd,261500,Human Resources Training & Conferences ,Fees and Charges,Services to People,SEN Independent Sch," 26,013.00 ",401024,10372
01/08/2022,ZZH711024,1,14243,Keys PCE Ltd,261500,Human Resources Training & Conferences ,Fees and Charges,Services to People,SEN Independent Sch," 26,013.00 ",401024,10372
01/08/2022,ZZH711025,1,14243,Keys PCE Ltd,261500,Human Resources Training & Conferences ,Fees and Charges,Services to People,SEN Independent Sch," 26,013.00 ",401024,10372
01/08/2022,ZZH711026,1,14243,Keys PCE Ltd,261500,Human Resources Training & Conferences ,Fees and Charges,Services to People,SEN Independent Sch," 26,013.00 ",401024,10372
01/08/2022,ZZH711027,1,14243,Keys PCE Ltd,261500,Human Resources Training & Conferences ,Fees and Charges,Services to People,SEN Independent Sch," 24,555.38 ",401024,10372
01/08/2022,ZZH711030,1,1669,Charnwood Nursery,261500,Human Resources Training & Conferences ,Fees and Charges,Services to People,SEN Independent Sch," 19,000.00 ",401024,10372
01/08/2022,ZZH711035,1,10985,Broadstones School Ltd,261500,Human Resources Training & Conferences ,Fees and Charges,Services to People,SEN Independent Sch," 39,000.00 ",401024,10372
01/08/2022,ZZH711036,1,10985,Broadstones School Ltd,261500,Human Resources Training & Conferences ,Fees and Charges,Services to People,SEN Independent Sch," 39,000.00 ",401024,10372
01/08/2022,ZZH711037,1,10985,Broadstones School Ltd,261500,Human Resources Training & Conferences ,Fees and Charges,Services to People,SEN Independent Sch," 39,000.00 ",401024,10372
01/08/2022,ZZH711038,1,10985,Broadstones School Ltd,261500,Human Resources Training & Conferences ,Fees and Charges,Services to People,SEN Independent Sch," 39,000.00 ",401024,10372
01/08/2022,ZZH711044,1,13442,Edward Morgan - Legal/Law,150000,Consultancy   ,Professional Fees,Corporate and Support Services,Legal Fees Budget," 5,000.00 ",401020,12271
02/08/2022,ZZH711062,1,6748,GEORGE COX & SONS LTD,390000,Supplies and services,Supplies and services,Services to Place,Highway Structs R+R," 17,920.69 ",401600,11975
02/08/2022,ZZH711074,1,9992,Reheat (Renewable Technologies,150000,Consultancy   ,Professional Fees,Non-General Fund Items,HRA Strategic Mgt," 56,266.83 ",401020,12175
02/08/2022,ZZH711086,1,12180,Acorn Care and Education,261500,Human Resources Training & Conferences ,Fees and Charges,Services to People,SEN Independent Sch," 38,115.03 ",401024,10372
02/08/2022,ZZH711087,1,12180,Acorn Care and Education,261500,Human Resources Training & Conferences ,Fees and Charges,Services to People,SEN Independent Sch," 34,356.25 ",401024,10372
02/08/2022,ZZH711088,1,12180,Acorn Care and Education,261500,Human Resources Training & Conferences ,Fees and Charges,Services to People,SEN Independent Sch," 34,356.25 ",401024,10372
02/08/2022,ZZH711089,1,12180,Acorn Care and Education,261500,Human Resources Training & Conferences ,Fees and Charges,Services to People,SEN Independent Sch," 44,562.50 ",401024,10372
02/08/2022,ZZH711090,1,12180,Acorn Care and Education,261500,Human Resources Training & Conferences ,Fees and Charges,Services to People,SEN Independent Sch," 44,562.50 ",401024,10372
02/08/2022,ZZH711092,1,13808,Progress Schools Limited,261500,Human Resources Training & Conferences ,Fees and Charges,Services to People,SEN Independent Sch," 29,452.80 ",401024,10372
02/08/2022,ZZH711093,1,12180,Acorn Care and Education,261500,Human Resources Training & Conferences ,Fees and Charges,Services to People,SEN Independent Sch," 44,562.50 ",401024,10372
02/08/2022,ZZH711103,1,14507,Kainos Software Ltd (DfT),270000,Information Communication Technology  ,Information and Communications Technology,Services to Place,GMRAPS," 3,750.00 ",402001,12650
02/08/2022,ZZH711103,2,14507,Kainos Software Ltd (DfT),270000,Information Communication Technology  ,Information and Communications Technology,Services to Place,GMRAPS," 3,750.00 ",402001,12650
02/08/2022,ZZH711103,3,14507,Kainos Software Ltd (DfT),270000,Information Communication Technology  ,Information and Communications Technology,Services to Place,GMRAPS," 3,750.00 ",402001,12650
02/08/2022,ZZH711103,4,14507,Kainos Software Ltd (DfT),270000,Information Communication Technology  ,Information and Communications Technology,Services to Place,GMRAPS," 3,750.00 ",402001,12650
03/08/2022,ZZH711122,1,15188,Specialist Light Halage Soluti,210000,Furniture & Soft Furnishings  ,Furniture and Equipment,Corporate and Support Services,Local Election," 12,500.00 ",400120,12102
03/08/2022,ZZH711130,1,6748,GEORGE COX & SONS LTD,390000,"Works - Construction, Repair & Maintenance  ",Capital Expenditure - Works,#N/A,#N/A," 34,698.21 ",200304,C.01456.203
03/08/2022,ZZH711133,1,8549,Lucy Zodion Ltd,390000,"Works - Construction, Repair & Maintenance  ",Capital Expenditure - Works,#N/A,#N/A," 10,000.00 ",200304,C.01198.203
03/08/2022,ZZH711134,1,7025,CBRE Limited,150000,Consultancy   ,Professional Fees,Services to Place,Town deal Cheadle," 7,500.00 ",401020,13057
03/08/2022,ZZH711136,1,15268,Anthesis (UK) Ltd,150000,Consultancy   ,Professional Fees,Services to Place,MDC Mayoral DC," 30,000.00 ",401007,13033
03/08/2022,ZZH711137,1,683,AECOM Limited,150000,Consultancy   ,Professional Fees,Services to Place,Town Centre Devt Tea," 60,000.00 ",401007,10072
03/08/2022,ZZH711146,1,15278,NAS Academies Trust Church Law,170000,Education  ,Third party payments - Public Sector,Services to People,OLA pupils," 18,000.00 ",500304,10371
03/08/2022,ZZH711151,1,3529,Totally Local Company Ltd,390000,Supplies and services,Supplies and services,#N/A,#N/A," 13,286.13 ",401600,C.01378.203
03/08/2022,ZZH711155,1,3284,Stockport CP Ltd t/a Supportab,320000,Social Community Care Supplies & Services  ,Care Payments,Services to People,DP - Respite," 5,280.00 ",530325,11513
04/08/2022,ZZH711160,1,7166,THE DARTINGTON HALL TRUST,150000,Consultancy   ,Professional Fees,Services to People,Practice Lead Team," 11,625.00 ",401020,13066
04/08/2022,ZZH711177,1,14890,IHS (GLOBAL) LTD,270000,Information Communication Technology  ,Information and Communications Technology,Services to Place,Property Client Acct," 15,293.52 ",402001,12328
04/08/2022,ZZH711184,1,1177,Copyright Licensing Agency,150000,Consultancy   ,Professional Fees,Corporate and Support Services,Legal Fees Budget," 17,947.05 ",401020,12271
04/08/2022,ZZH711186,1,14686,Post Office Limited,#N/A,#N/A,#N/A,Services to People,H'sehold S'port Fund," 38,000.00 ",500999,13154
04/08/2022,ZZH711212,1,3707,Salford City Council/Finance,999999,Third party payments - Public Sector,Third party payments - Public Sector,Services to People,Regional Imp Allianc," 25,500.00 ",500303,13031
05/08/2022,ZZH711263,1,1644,Tameside MBC,150000,Consultancy   ,Professional Fees,Corporate and Support Services,Bentax," 8,000.00 ",401020,11139
05/08/2022,ZZH711279,1,1799,Stockport Homes,320000,Social Community Care Supplies & Services  ,Third party payments - Private/Voluntary Sector,Corporate and Support Services,GMCA Cmnity Sfty Fnd," 24,500.00 ",402403,12965
05/08/2022,ZZH711282,1,13531,Behavioural Insights Ltd,150000,Consultancy   ,Professional Fees,Corporate and Support Services,Strategy & Design," 35,525.00 ",401007,12642
05/08/2022,ZZH711285,1,1799,Stockport Homes,120000,Cemetery & Crematorium   ,Fees and Charges,Services to Place,HoS Public Protectn," 26,471.00 ",401200,12753
05/08/2022,ZZH711299,1,15082,Stockport Active CIC,290000,Arts & Leisure Services  ,Publicity and Promotion,Services to People,SC - Care Matters," 8,000.00 ",401801,11768
09/08/2022,ZZH711376,1,223,Groundwork Landscapes Ltd,240000,Horticultural  ,Grounds Maintenance,#N/A,#N/A," 34,719.75 ",202032,C.10775
09/08/2022,ZZH711379,1,12193,Greater Manchester Combined Au,230000,Highway Equipment & Materials�   ,Highways Maintenance,Services to Place,S 278 Monies," 10,490.00 ",202054,12843
09/08/2022,ZZH711402,1,12269,PENARTH GROUP,261500,Human Resources Training & Conferences ,Fees and Charges,Services to People,SEN Independent Sch," 28,002.41 ",401024,10372
09/08/2022,ZZH711431,1,82,Marwood Electrical Company Ltd,390000,"Works - Construction, Repair & Maintenance  ",Capital Expenditure - Works,#N/A,#N/A," 10,394.40 ",200304,C.01200.203
09/08/2022,ZZH711431,2,82,Marwood Electrical Company Ltd,390000,"Works - Construction, Repair & Maintenance  ",Capital Expenditure - Works,#N/A,#N/A," 4,547.55 ",200304,C.01200.203
09/08/2022,ZZH711431,3,82,Marwood Electrical Company Ltd,390000,"Works - Construction, Repair & Maintenance  ",Capital Expenditure - Works,#N/A,#N/A," 3,294.00 ",200304,C.01200.203
10/08/2022,ZZH711445,1,1255,Millercare Ltd,270000,Information Communication Technology  ,Information and Communications Technology,Services to People,SADLs Service," 6,684.01 ",402001,12530
10/08/2022,ZZH711471,1,10985,Broadstones School Ltd,261500,Human Resources Training & Conferences ,Fees and Charges,Services to People,SEN Independent Sch," 36,400.00 ",401024,10372
10/08/2022,ZZH711472,1,10985,Broadstones School Ltd,261500,Human Resources Training & Conferences ,Fees and Charges,Services to People,SEN Independent Sch," 27,300.00 ",401024,10372
10/08/2022,ZZH711473,1,10985,Broadstones School Ltd,261500,Human Resources Training & Conferences ,Fees and Charges,Services to People,SEN Independent Sch," 27,300.00 ",401024,10372
10/08/2022,ZZH711474,1,10985,Broadstones School Ltd,261500,Human Resources Training & Conferences ,Fees and Charges,Services to People,SEN Independent Sch," 27,300.00 ",401024,10372
10/08/2022,ZZH711475,1,10985,Broadstones School Ltd,261500,Human Resources Training & Conferences ,Fees and Charges,Services to People,SEN Independent Sch," 27,300.00 ",401024,10372
10/08/2022,ZZH711476,1,13205,Manchester Occupational Therap,150000,Consultancy   ,Professional Fees,Services to People,SEN Specific support," 3,750.00 ",401020,10300
10/08/2022,ZZH711476,2,13205,Manchester Occupational Therap,150000,Consultancy   ,Professional Fees,Services to People,SEN Specific support, 750.00 ,401020,10300
10/08/2022,ZZH711476,3,13205,Manchester Occupational Therap,150000,Consultancy   ,Professional Fees,Services to People,SEN Specific support, 750.00 ,401020,10300
10/08/2022,ZZH711478,1,11568,The Birches School,170000,Education  ,Third party payments - Public Sector,Services to People,OLA pupils," 7,865.00 ",500304,10371
10/08/2022,ZZH711488,1,223,Groundwork Landscapes Ltd,240000,Horticultural  ,Grounds Maintenance,#N/A,#N/A," 23,417.75 ",202032,C.10775
11/08/2022,ZZH711514,1,1799,Stockport Homes,150000,Consultancy   ,Professional Fees,Services to Place,HoS Public Protectn," 26,471.00 ",401020,12753
11/08/2022,ZZH711515,1,9494,Patrol - Parking Charges,200000,Financial Services  ,Fees and Charges,Services to Place,Moving Traffic," 5,583.90 ",402401,13014
11/08/2022,ZZH711516,1,8817,AECOM Infrastructure & Environ,150000,Consultancy   ,Professional Fees,#N/A,#N/A," 5,325.60 ",401007,C.01326.201
12/08/2022,ZZH711572,1,3771,Warrington MBC,999999,Third party payments - Public Sector,Third party payments - Public Sector,Services to People,Regional Imp Allianc," 33,000.00 ",500303,13031
12/08/2022,ZZH711599,1,15297,Action First Assessments Ltd,150000,Consultancy   ,Professional Fees,Services to People,Safeguarding Adults," 6,500.00 ",401020,12424
12/08/2022,ZZH711600,1,7025,CBRE Limited,150000,Consultancy   ,Professional Fees,Services to Place,MDC Mayoral DC," 35,500.00 ",401007,13033
15/08/2022,ZZH711640,1,4611,G-Map Services,320000,Social Community Care Supplies & Services  ,Care Payments,Services to People,SC - Leaving Care," 10,890.00 ",530357,11501
15/08/2022,ZZH711672,1,1900,Broxap Ltd,181800,Environmental Services Technical Equipment ,Furniture and Equipment,Services to Place,Memorial Benches," 8,124.00 ",400110,11279
15/08/2022,ZZH711672,2,1900,Broxap Ltd,181800,Environmental Services Technical Equipment ,Furniture and Equipment,Services to Place,Memorial Benches, 357.00 ,400110,11279
15/08/2022,ZZH711674,1,6748,GEORGE COX & SONS LTD,390000,Supplies and services,Supplies and services,#N/A,#N/A," 43,678.22 ",401600,C.01532.203
16/08/2022,ZZH711706,1,3529,Totally Local Company Ltd,240000,Horticultural  ,Grounds Maintenance,Services to People,Adults Management," 14,300.00 ",202030,11873
16/08/2022,ZZH711727,1,3529,Totally Local Company Ltd,390000,"Works - Construction, Repair & Maintenance  ",Capital Expenditure - Works,#N/A,#N/A," 31,358.61 ",200304,C.01464.203
16/08/2022,ZZH711736,1,13249,Viaduct Care CIC,260000,Human Resources  ,Other Payments,Services to People,Proactive Care," 73,375.00 ",100304,12829
18/08/2022,ZZH711801,1,9862,Jacobs Consulting Engineers,150000,Consultancy   ,Professional Fees,Services to Place,Local Plan Project," 36,311.00 ",401007,12936
19/08/2022,ZZH711837,1,1694,Network Rail Infras'ture Ltd,390000,"Works - Construction, Repair & Maintenance  ",Capital Expenditure - Works,#N/A,#N/A," 12,990.96 ",200304,C.00614.203
19/08/2022,ZZH711839,1,1644,Tameside MBC,150000,Consultancy   ,Professional Fees,Services to People,Safeguarding Adults," 62,690.71 ",401020,12424
19/08/2022,ZZH711841,1,15306,The National House Project CIO,150000,Consultancy   ,Professional Fees,Services to People,GM House Project," 5,775.00 ",401020,13193
19/08/2022,ZZH711864,1,5214,WSP GROUP PLC,150000,Consultancy   ,Professional Fees,#N/A,#N/A," 9,328.00 ",401007,C.00718.203
19/08/2022,ZZH711865,1,757,Transport for Greater Manchest,391114,"Works - Construction, Repair & Maintenance Buildings Surveys",Capital Expenditure - Fees,#N/A,#N/A," 27,750.50 ",200316,C.01300.201
22/08/2022,ZZH711894,1,12400,Michael Page International Rec,150000,Consultancy   ,Professional Fees,Services to Place,MDC Mayoral DC," 15,000.00 ",401007,13033
22/08/2022,ZZH711898,1,12180,Acorn Care and Education,261500,Human Resources Training & Conferences ,Fees and Charges,Services to People,SEN Independent Sch," 48,058.08 ",401024,10372
22/08/2022,ZZH711899,1,12180,Acorn Care and Education,261500,Human Resources Training & Conferences ,Fees and Charges,Services to People,SEN Independent Sch," 44,314.58 ",401024,10372
22/08/2022,ZZH711911,1,9301,STOCKPORT REFUGEE SUPPORT GROU,999999,Social Community Care Supplies & Services  ,Service Contract Payments,Services to People,PH-Health Protection," 6,000.00 ",561704,12739
23/08/2022,ZZH711958,1,6356,Malcolm Hughes Land Survey,390000,Supplies and services,Supplies and services,#N/A,#N/A," 5,800.00 ",401600,C.01487.201
23/08/2022,ZZH711968,1,11466,High Peak School Ltd,261500,Human Resources Training & Conferences ,Fees and Charges,Services to People,SEN Independent Sch," 58,476.00 ",401024,10372
23/08/2022,ZZH711969,1,12180,Acorn Care and Education,261500,Human Resources Training & Conferences ,Fees and Charges,Services to People,SEN Independent Sch," 50,267.64 ",401024,10372
23/08/2022,ZZH711975,1,865,Bethell Construction Ltd,390000,Supplies and services,Supplies and services,#N/A,#N/A," 100,947.80 ",401600,C.01221.203
24/08/2022,ZZH711997,1,10609,Bendcrete Leisure,240000,Horticultural  ,Grounds Maintenance,#N/A,#N/A," 70,000.00 ",202032,C.10775
24/08/2022,ZZH712004,1,5214,WSP GROUP PLC,150000,Consultancy   ,Professional Fees,Services to Place,Transport Strategy," 28,000.00 ",401007,13060
24/08/2022,ZZH712008,1,10985,Broadstones School Ltd,261500,Human Resources Training & Conferences ,Fees and Charges,Services to People,SEN Independent Sch," 27,300.00 ",401024,10372
24/08/2022,ZZH712009,1,11466,High Peak School Ltd,261500,Human Resources Training & Conferences ,Fees and Charges,Services to People,SEN Independent Sch," 43,857.00 ",401024,10372
24/08/2022,ZZH712011,1,8926,P88003 Manor Medical Practice,320000,Social Community Care Supplies & Services  ,Care Payments,Services to People,PH-Healthcare," 3,395.00 ",530348,12735
24/08/2022,ZZH712011,2,8926,P88003 Manor Medical Practice,320000,Social Community Care Supplies & Services  ,Care Payments,Services to People,PH-Lifestyles," 3,126.00 ",530348,12737
24/08/2022,ZZH712011,3,8926,P88003 Manor Medical Practice,999999,Social Community Care Supplies & Services  ,Service Contract Payments,Services to People,PH-Sexual Health LES," 1,548.00 ",561704,12748
24/08/2022,ZZH712011,4,8926,P88003 Manor Medical Practice,320000,Social Community Care Supplies & Services  ,Care Payments,Services to People,PH-Sexual Health LES," 2,504.00 ",530348,12748
24/08/2022,ZZH712031,1,1342,UK Container Maintenance Ltd,182020,Environmental Services Waste Management,Waste Management Equipment,Services to Place,Bulk Container, 609.00 ,400401,10883
24/08/2022,ZZH712031,2,1342,UK Container Maintenance Ltd,182020,Environmental Services Waste Management,Waste Management Equipment,Services to Place,Bulk Container, 812.00 ,400401,10883
24/08/2022,ZZH712031,3,1342,UK Container Maintenance Ltd,182020,Environmental Services Waste Management,Waste Management Equipment,Services to Place,Bulk Container," 2,030.00 ",400401,10883
24/08/2022,ZZH712031,4,1342,UK Container Maintenance Ltd,182020,Environmental Services Waste Management,Waste Management Equipment,Services to Place,Bulk Container," 2,640.00 ",400401,10883
24/08/2022,ZZH712031,5,1342,UK Container Maintenance Ltd,182020,Environmental Services Waste Management,Waste Management Equipment,Services to Place,Bulk Container, 187.00 ,400401,10883
24/08/2022,ZZH712032,1,683,AECOM Limited,150000,Consultancy   ,Professional Fees,#N/A,#N/A," 34,266.00 ",401007,C.00620.201
24/08/2022,ZZH712033,1,6748,GEORGE COX & SONS LTD,230000,Highway Equipment & Materials�   ,Highways Maintenance,Services to Place,S 278 Monies," 30,510.95 ",202054,12843
24/08/2022,ZZH712042,1,270,Manchester Met University,999999,UNCLASSIFIED  ,MISCLASSIFIED? CHECK BEFORE PUBLICATION,Services to People,HR SW Team 2," 16,692.00 ",100100,13133
25/08/2022,ZZH712054,1,4579,Prospero Teaching,999999,Social Community Care Supplies & Services  ,Service Contract Payments,Services to People,PH-Health Protection," 6,000.00 ",561704,12739
25/08/2022,ZZH712081,1,15321,Centre for Alternative Technol,261500,Human Resources Training & Conferences ,Fees and Charges,Services to Place,Property Client Acct," 7,310.00 ",401024,12328
25/08/2022,ZZH712086,1,15179,Hamptons Resourcing,190000,Facilities & Management Services  ,Office Expenses,Services to People,Adults Management," 22,000.00 ",400700,11873
25/08/2022,ZZH712096,1,2746,Local Government Info Unit,200000,Financial Services  ,Fees and Charges,Corporate and Support Services,Strategy & Design," 14,500.00 ",402401,12642
25/08/2022,ZZH712100,1,10897,Three Sixty SHG Ltd,390000,"Works - Construction, Repair & Maintenance  ",Repairs and Maintenance,Corporate and Support Services,Public Libraries Gen," 22,058.59 ",200123,11329
26/08/2022,ZZH712122,1,3529,Totally Local Company Ltd,381600,Vehicle Management Hire/Leasing ,Leasing /Transport Hire,Services to People,SC - Broadfield," 10,714.32 ",300300,11443
26/08/2022,ZZH712122,2,3529,Totally Local Company Ltd,260000,Human Resources  ,Staff Training,Services to People,SC - Broadfield, 405.12 ,102020,11443
26/08/2022,ZZH712130,1,6748,GEORGE COX & SONS LTD,390000,Supplies and services,Supplies and services,Services to Place,Highway Structs R+R," 5,241.09 ",401600,11975
30/08/2022,ZZH712144,1,216,Manchester City Council,202100,Financial Services Subscriptions ,Third party payments - Public Sector,Corporate and Support Services,Civil Resilience," 52,380.00 ",500305,11103
30/08/2022,ZZH712147,1,8948,P88020 Cheadle Medical Practic,320000,Social Community Care Supplies & Services  ,Care Payments,Services to People,PH-Healthcare," 4,433.00 ",530348,12735
30/08/2022,ZZH712147,2,8948,P88020 Cheadle Medical Practic,320000,Social Community Care Supplies & Services  ,Care Payments,Services to People,PH-Lifestyles," 2,421.00 ",530348,12737
30/08/2022,ZZH712147,3,8948,P88020 Cheadle Medical Practic,999999,Social Community Care Supplies & Services  ,Service Contract Payments,Services to People,PH-Sexual Health LES," 1,888.00 ",561704,12748
30/08/2022,ZZH712147,4,8948,P88020 Cheadle Medical Practic,320000,Social Community Care Supplies & Services  ,Care Payments,Services to People,PH-Sexual Health LES," 6,184.00 ",530348,12748
30/08/2022,ZZH712149,1,8945,P88018 Park View Group Practic,320000,Social Community Care Supplies & Services  ,Care Payments,Services to People,PH-Healthcare," 3,292.00 ",530348,12735
30/08/2022,ZZH712149,2,8945,P88018 Park View Group Practic,320000,Social Community Care Supplies & Services  ,Care Payments,Services to People,PH-Lifestyles," 3,227.00 ",530348,12737
30/08/2022,ZZH712149,3,8945,P88018 Park View Group Practic,999999,Social Community Care Supplies & Services  ,Service Contract Payments,Services to People,PH-Sexual Health LES," 4,066.00 ",561704,12748
30/08/2022,ZZH712149,4,8945,P88018 Park View Group Practic,320000,Social Community Care Supplies & Services  ,Care Payments,Services to People,PH-Sexual Health LES," 4,322.00 ",530348,12748
30/08/2022,ZZH712150,1,8959,P88002 Marple Bridge Surgery,320000,Social Community Care Supplies & Services  ,Care Payments,Services to People,PH-Healthcare," 2,648.00 ",530348,12735
30/08/2022,ZZH712150,2,8959,P88002 Marple Bridge Surgery,320000,Social Community Care Supplies & Services  ,Care Payments,Services to People,PH-Lifestyles, 836.00 ,530348,12737
30/08/2022,ZZH712150,3,8959,P88002 Marple Bridge Surgery,999999,Social Community Care Supplies & Services  ,Service Contract Payments,Services to People,PH-Sexual Health LES," 1,579.00 ",561704,12748
30/08/2022,ZZH712151,1,8944,P88017 Chadsfield Medical Prac,320000,Social Community Care Supplies & Services  ,Care Payments,Services to People,PH-Healthcare," 2,767.00 ",530348,12735
30/08/2022,ZZH712151,2,8944,P88017 Chadsfield Medical Prac,320000,Social Community Care Supplies & Services  ,Care Payments,Services to People,PH-Lifestyles," 1,361.00 ",530348,12737
30/08/2022,ZZH712151,3,8944,P88017 Chadsfield Medical Prac,999999,Social Community Care Supplies & Services  ,Service Contract Payments,Services to People,PH-Sexual Health LES, 272.00 ,561704,12748
30/08/2022,ZZH712151,4,8944,P88017 Chadsfield Medical Prac,320000,Social Community Care Supplies & Services  ,Care Payments,Services to People,PH-Sexual Health LES, 773.00 ,530348,12748
30/08/2022,ZZH712152,1,8949,P88015 Bramhall Health Centre,320000,Social Community Care Supplies & Services  ,Care Payments,Services to People,PH-Healthcare," 4,861.00 ",530348,12735
30/08/2022,ZZH712152,2,8949,P88015 Bramhall Health Centre,320000,Social Community Care Supplies & Services  ,Care Payments,Services to People,PH-Lifestyles," 1,453.00 ",530348,12737
30/08/2022,ZZH712153,1,8950,P88012 Beech House Medical Pra,320000,Social Community Care Supplies & Services  ,Care Payments,Services to People,PH-Healthcare," 3,037.00 ",530348,12735
30/08/2022,ZZH712153,2,8950,P88012 Beech House Medical Pra,320000,Social Community Care Supplies & Services  ,Care Payments,Services to People,PH-Lifestyles," 1,646.00 ",530348,12737
30/08/2022,ZZH712153,3,8950,P88012 Beech House Medical Pra,999999,Social Community Care Supplies & Services  ,Service Contract Payments,Services to People,PH-Sexual Health LES," 1,920.00 ",561704,12748
30/08/2022,ZZH712153,4,8950,P88012 Beech House Medical Pra,320000,Social Community Care Supplies & Services  ,Care Payments,Services to People,PH-Sexual Health LES," 1,110.00 ",530348,12748
30/08/2022,ZZH712154,1,8963,P88011 Heaton Norris Medical P,320000,Social Community Care Supplies & Services  ,Care Payments,Services to People,PH-Healthcare," 3,949.00 ",530348,12735
30/08/2022,ZZH712154,2,8963,P88011 Heaton Norris Medical P,320000,Social Community Care Supplies & Services  ,Care Payments,Services to People,PH-Lifestyles," 4,609.00 ",530348,12737
30/08/2022,ZZH712154,3,8963,P88011 Heaton Norris Medical P,999999,Social Community Care Supplies & Services  ,Service Contract Payments,Services to People,PH-Sexual Health LES," 2,142.00 ",561704,12748
30/08/2022,ZZH712154,4,8963,P88011 Heaton Norris Medical P,320000,Social Community Care Supplies & Services  ,Care Payments,Services to People,PH-Sexual Health LES," 2,989.00 ",530348,12748
30/08/2022,ZZH712156,1,8956,P88005 The Family Surgery,320000,Social Community Care Supplies & Services  ,Care Payments,Services to People,PH-Healthcare," 4,190.00 ",530348,12735
30/08/2022,ZZH712156,2,8956,P88005 The Family Surgery,320000,Social Community Care Supplies & Services  ,Care Payments,Services to People,PH-Lifestyles," 4,249.00 ",530348,12737
30/08/2022,ZZH712157,1,8939,P88006 Marple Cottage Surgery,320000,Social Community Care Supplies & Services  ,Care Payments,Services to People,PH-Healthcare," 4,283.00 ",530348,12735
30/08/2022,ZZH712157,2,8939,P88006 Marple Cottage Surgery,320000,Social Community Care Supplies & Services  ,Care Payments,Services to People,PH-Lifestyles," 2,195.00 ",530348,12737
30/08/2022,ZZH712157,3,8939,P88006 Marple Cottage Surgery,999999,Social Community Care Supplies & Services  ,Service Contract Payments,Services to People,PH-Sexual Health LES, 91.00 ,561704,12748
30/08/2022,ZZH712157,4,8939,P88006 Marple Cottage Surgery,320000,Social Community Care Supplies & Services  ,Care Payments,Services to People,PH-Sexual Health LES," 1,272.00 ",530348,12748
30/08/2022,ZZH712158,1,8947,P88013 Caritas General Practic,320000,Social Community Care Supplies & Services  ,Care Payments,Services to People,PH-Healthcare," 5,045.00 ",530348,12735
30/08/2022,ZZH712158,2,8947,P88013 Caritas General Practic,320000,Social Community Care Supplies & Services  ,Care Payments,Services to People,PH-Lifestyles," 3,563.00 ",530348,12737
30/08/2022,ZZH712158,3,8947,P88013 Caritas General Practic,999999,Social Community Care Supplies & Services  ,Service Contract Payments,Services to People,PH-Sexual Health LES," 6,122.00 ",561704,12748
30/08/2022,ZZH712158,4,8947,P88013 Caritas General Practic,320000,Social Community Care Supplies & Services  ,Care Payments,Services to People,PH-Sexual Health LES," 7,099.00 ",530348,12748
30/08/2022,ZZH712160,1,8942,P88008 Heaton Mersey Medical P,320000,Social Community Care Supplies & Services  ,Care Payments,Services to People,PH-Healthcare," 3,139.00 ",530348,12735
30/08/2022,ZZH712160,2,8942,P88008 Heaton Mersey Medical P,320000,Social Community Care Supplies & Services  ,Care Payments,Services to People,PH-Lifestyles," 1,393.00 ",530348,12737
30/08/2022,ZZH712160,3,8942,P88008 Heaton Mersey Medical P,999999,Social Community Care Supplies & Services  ,Service Contract Payments,Services to People,PH-Sexual Health LES, 787.00 ,561704,12748
30/08/2022,ZZH712160,4,8942,P88008 Heaton Mersey Medical P,320000,Social Community Care Supplies & Services  ,Care Payments,Services to People,PH-Sexual Health LES, 64.00 ,530348,12748
30/08/2022,ZZH712161,1,8933,P88007 Cheadle Hulme Health Ce,320000,Social Community Care Supplies & Services  ,Care Payments,Services to People,PH-Healthcare," 5,468.00 ",530348,12735
30/08/2022,ZZH712161,2,8933,P88007 Cheadle Hulme Health Ce,320000,Social Community Care Supplies & Services  ,Care Payments,Services to People,PH-Lifestyles," 2,012.00 ",530348,12737
30/08/2022,ZZH712161,3,8933,P88007 Cheadle Hulme Health Ce,999999,Social Community Care Supplies & Services  ,Service Contract Payments,Services to People,PH-Sexual Health LES," 3,793.00 ",561704,12748
30/08/2022,ZZH712161,4,8933,P88007 Cheadle Hulme Health Ce,320000,Social Community Care Supplies & Services  ,Care Payments,Services to People,PH-Sexual Health LES," 4,551.00 ",530348,12748
30/08/2022,ZZH712180,1,1382,Pure Innovations Ltd,150000,Consultancy   ,Professional Fees,Services to People,SC - Leaving Care," 47,995.00 ",401020,11501
30/08/2022,ZZH712181,1,1382,Pure Innovations Ltd,150000,Consultancy   ,Professional Fees,Services to People,SC - Leaving Care," 47,900.00 ",401020,11501
30/08/2022,ZZH712183,1,5892,Groundwork Greater Manchester,150000,Consultancy   ,Professional Fees,Services to People,SC - IST," 25,000.00 ",401020,12184
30/08/2022,ZZH712184,1,5131,FUTURE DESIGN CONSULTANTS,150000,Consultancy   ,Professional Fees,#N/A,#N/A," 5,380.00 ",401007,13186
30/08/2022,ZZH712184,2,5131,FUTURE DESIGN CONSULTANTS,190000,Facilities & Management Services  ,Publicity and Promotion,#N/A,#N/A, 528.00 ,401802,13186
30/08/2022,ZZH712184,3,5131,FUTURE DESIGN CONSULTANTS,190000,Facilities & Management Services  ,Publicity and Promotion,#N/A,#N/A, 624.00 ,401802,13186
30/08/2022,ZZH712193,1,5131,FUTURE DESIGN CONSULTANTS,191600,Facilities & Management Services Printing ,Printing and Photocopying,Services to People,PH-Mental Wellbeing," 1,980.00 ",400800,12734
30/08/2022,ZZH712193,2,5131,FUTURE DESIGN CONSULTANTS,191600,Facilities & Management Services Printing ,Printing and Photocopying,Services to People,PH-Mental Wellbeing," 1,260.00 ",400800,12734
30/08/2022,ZZH712193,3,5131,FUTURE DESIGN CONSULTANTS,191600,Facilities & Management Services Printing ,Printing and Photocopying,Services to People,PH-Mental Wellbeing, 630.00 ,400800,12734
30/08/2022,ZZH712193,4,5131,FUTURE DESIGN CONSULTANTS,191600,Facilities & Management Services Printing ,Printing and Photocopying,Services to People,PH-Mental Wellbeing, 900.00 ,400800,12734
30/08/2022,ZZH712193,5,5131,FUTURE DESIGN CONSULTANTS,191600,Facilities & Management Services Printing ,Printing and Photocopying,Services to People,PH-Mental Wellbeing, 420.00 ,400800,12734
30/08/2022,ZZH712193,6,5131,FUTURE DESIGN CONSULTANTS,191600,Facilities & Management Services Printing ,Printing and Photocopying,Services to People,PH-Mental Wellbeing, 960.00 ,400800,12734
30/08/2022,ZZH712199,1,13860,Howard Lynn Property Ltd,261400,Human Resources Temporary & Agency Staff ,Agency Staff,Services to Place,Property Client Acct," 6,628.21 ",100290,12328
30/08/2022,ZZH712202,1,8957,P88632 Stockport Medical Group,320000,Social Community Care Supplies & Services  ,Care Payments,Services to People,PH-Healthcare," 5,907.00 ",530348,12735
30/08/2022,ZZH712202,2,8957,P88632 Stockport Medical Group,320000,Social Community Care Supplies & Services  ,Care Payments,Services to People,PH-Lifestyles," 6,375.00 ",530348,12737
30/08/2022,ZZH712202,3,8957,P88632 Stockport Medical Group,999999,Social Community Care Supplies & Services  ,Service Contract Payments,Services to People,PH-Sexual Health LES," 11,305.00 ",561704,12748
30/08/2022,ZZH712202,4,8957,P88632 Stockport Medical Group,320000,Social Community Care Supplies & Services  ,Care Payments,Services to People,PH-Sexual Health LES," 13,768.00 ",530348,12748
30/08/2022,ZZH712203,1,8930,P88625 Woodley Health Centre -,320000,Social Community Care Supplies & Services  ,Care Payments,Services to People,PH-Healthcare," 3,050.00 ",530348,12735
30/08/2022,ZZH712203,2,8930,P88625 Woodley Health Centre -,320000,Social Community Care Supplies & Services  ,Care Payments,Services to People,PH-Lifestyles," 2,256.00 ",530348,12737
30/08/2022,ZZH712203,3,8930,P88625 Woodley Health Centre -,999999,Social Community Care Supplies & Services  ,Service Contract Payments,Services to People,PH-Sexual Health LES," 2,433.00 ",561704,12748
30/08/2022,ZZH712203,4,8930,P88625 Woodley Health Centre -,320000,Social Community Care Supplies & Services  ,Care Payments,Services to People,PH-Sexual Health LES," 2,989.00 ",530348,12748
30/08/2022,ZZH712207,1,3789,"P88043 Brinnington Surgery, Br",320000,Social Community Care Supplies & Services  ,Care Payments,Services to People,PH-Healthcare," 2,802.00 ",530348,12735
30/08/2022,ZZH712207,2,3789,"P88043 Brinnington Surgery, Br",320000,Social Community Care Supplies & Services  ,Care Payments,Services to People,PH-Lifestyles," 5,209.00 ",530348,12737
30/08/2022,ZZH712207,3,3789,"P88043 Brinnington Surgery, Br",999999,Social Community Care Supplies & Services  ,Service Contract Payments,Services to People,PH-Sexual Health LES," 10,733.00 ",561704,12748
30/08/2022,ZZH712207,4,3789,"P88043 Brinnington Surgery, Br",320000,Social Community Care Supplies & Services  ,Care Payments,Services to People,PH-Sexual Health LES," 5,241.00 ",530348,12748
30/08/2022,ZZH712208,1,8922,P88042 Heald Green Health Cent,320000,Social Community Care Supplies & Services  ,Care Payments,Services to People,PH-Healthcare," 2,349.00 ",530348,12735
30/08/2022,ZZH712208,2,8922,P88042 Heald Green Health Cent,320000,Social Community Care Supplies & Services  ,Care Payments,Services to People,PH-Sexual Health LES," 1,176.00 ",530348,12748
30/08/2022,ZZH712208,3,8922,P88042 Heald Green Health Cent,999999,Social Community Care Supplies & Services  ,Service Contract Payments,Services to People,PH-Sexual Health LES," 1,770.00 ",561704,12748
30/08/2022,ZZH712208,4,8922,P88042 Heald Green Health Cent,320000,Social Community Care Supplies & Services  ,Care Payments,Services to People,PH-Sexual Health LES," 3,413.00 ",530348,12748
30/08/2022,ZZH712210,1,8928,P88031 Bracondale Medical Cent,320000,Social Community Care Supplies & Services  ,Care Payments,Services to People,PH-Healthcare," 2,077.00 ",530348,12735
30/08/2022,ZZH712210,2,8928,P88031 Bracondale Medical Cent,320000,Social Community Care Supplies & Services  ,Care Payments,Services to People,PH-Lifestyles," 1,366.00 ",530348,12737
30/08/2022,ZZH712210,3,8928,P88031 Bracondale Medical Cent,999999,Social Community Care Supplies & Services  ,Service Contract Payments,Services to People,PH-Sexual Health LES," 1,652.00 ",561704,12748
30/08/2022,ZZH712210,4,8928,P88031 Bracondale Medical Cent,320000,Social Community Care Supplies & Services  ,Care Payments,Services to People,PH-Sexual Health LES," 2,099.00 ",530348,12748
30/08/2022,ZZH712211,1,8914,P88026 Heaton Moor Medical Gro,320000,Social Community Care Supplies & Services  ,Care Payments,Services to People,PH-Healthcare," 18,477.00 ",530348,12735
30/08/2022,ZZH712211,2,8914,P88026 Heaton Moor Medical Gro,320000,Social Community Care Supplies & Services  ,Care Payments,Services to People,PH-Lifestyles," 12,522.00 ",530348,12737
30/08/2022,ZZH712211,3,8914,P88026 Heaton Moor Medical Gro,999999,Social Community Care Supplies & Services  ,Service Contract Payments,Services to People,PH-Sexual Health LES," 7,388.00 ",561704,12748
30/08/2022,ZZH712211,4,8914,P88026 Heaton Moor Medical Gro,320000,Social Community Care Supplies & Services  ,Care Payments,Services to People,PH-Sexual Health LES," 7,473.00 ",530348,12748
30/08/2022,ZZH712212,1,8921,P88025 Hulme Hall Medical Grou,320000,Social Community Care Supplies & Services  ,Care Payments,Services to People,PH-Healthcare," 4,324.00 ",530348,12735
30/08/2022,ZZH712212,2,8921,P88025 Hulme Hall Medical Grou,320000,Social Community Care Supplies & Services  ,Care Payments,Services to People,PH-Lifestyles," 2,053.00 ",530348,12737
30/08/2022,ZZH712212,3,8921,P88025 Hulme Hall Medical Grou,999999,Social Community Care Supplies & Services  ,Service Contract Payments,Services to People,PH-Sexual Health LES, 581.00 ,561704,12748
30/08/2022,ZZH712212,4,8921,P88025 Hulme Hall Medical Grou,320000,Social Community Care Supplies & Services  ,Care Payments,Services to People,PH-Sexual Health LES," 1,590.00 ",530348,12748
30/08/2022,ZZH712213,1,8929,P88024 Gatley Medical Centre (,320000,Social Community Care Supplies & Services  ,Care Payments,Services to People,PH-Healthcare," 3,659.00 ",530348,12735
30/08/2022,ZZH712213,2,8929,P88024 Gatley Medical Centre (,320000,Social Community Care Supplies & Services  ,Care Payments,Services to People,PH-Lifestyles," 1,612.00 ",530348,12737
30/08/2022,ZZH712213,3,8929,P88024 Gatley Medical Centre (,320000,Social Community Care Supplies & Services  ,Care Payments,Services to People,PH-Sexual Health LES," 2,375.00 ",530348,12748
30/08/2022,ZZH712214,1,8960,P88023 Heald Green Health Cent,320000,Social Community Care Supplies & Services  ,Care Payments,Services to People,PH-Healthcare," 2,411.00 ",530348,12735
30/08/2022,ZZH712214,2,8960,P88023 Heald Green Health Cent,320000,Social Community Care Supplies & Services  ,Care Payments,Services to People,PH-Lifestyles," 1,290.00 ",530348,12737
30/08/2022,ZZH712214,3,8960,P88023 Heald Green Health Cent,999999,Social Community Care Supplies & Services  ,Service Contract Payments,Services to People,PH-Sexual Health LES, 672.00 ,561704,12748
30/08/2022,ZZH712214,4,8960,P88023 Heald Green Health Cent,320000,Social Community Care Supplies & Services  ,Care Payments,Services to People,PH-Sexual Health LES," 2,544.00 ",530348,12748
30/08/2022,ZZH712215,1,8964,P88021 Marple Medical Practice,320000,Social Community Care Supplies & Services  ,Care Payments,Services to People,PH-Healthcare," 2,796.00 ",530348,12735
30/08/2022,ZZH712215,2,8964,P88021 Marple Medical Practice,320000,Social Community Care Supplies & Services  ,Care Payments,Services to People,PH-Lifestyles," 1,465.00 ",530348,12737
30/08/2022,ZZH712215,3,8964,P88021 Marple Medical Practice,999999,Social Community Care Supplies & Services  ,Service Contract Payments,Services to People,PH-Sexual Health LES," 1,325.00 ",561704,12748
30/08/2022,ZZH712215,4,8964,P88021 Marple Medical Practice,320000,Social Community Care Supplies & Services  ,Care Payments,Services to People,PH-Sexual Health LES," 1,558.00 ",530348,12748
30/08/2022,ZZH712227,1,15318,Springboard Research Ltd,181800,Environmental Services Technical Equipment ,Furniture and Equipment,Services to Place,Town Centre Devt Tea," 6,600.00 ",400110,10072
30/08/2022,ZZH712229,1,10289,STOCKPORT SAMARITANS,999999,Social Community Care Supplies & Services  ,Service Contract Payments,Services to People,PH-Mental Wellbeing," 10,000.00 ",561704,12734
31/08/2022,ZZH712272,1,12400,Michael Page International Rec,150000,Consultancy   ,Professional Fees,Services to Place,MDC Mayoral DC," 15,000.00 ",401007,13033
01/09/2022,ZZH712307,1,7572,Wigan Council...,320000,Social Community Care Supplies & Services  ,Care Payments,Services to People,PH-Drug & Alcohol," 9,920.00 ",530327,12731
01/09/2022,ZZH712309,1,12978,Mills & Reeve LLP (office acco,280000,Legal Services  ,Legal Fees,Services to Place,Regen & Development," 7,000.00 ",401016,10098
01/09/2022,ZZH712337,1,9315,Carillion Morgan Sindall JV,390000,Supplies and services,Supplies and services,#N/A,#N/A," 118,606.03 ",401600,C.00880.203
01/09/2022,ZZH712338,1,3529,Totally Local Company Ltd,390000,Supplies and services,Supplies and services,#N/A,#N/A," 20,790.25 ",401600,C.00880.203
02/09/2022,ZZH712358,1,3529,Totally Local Company Ltd,240000,Horticultural  ,Grounds Maintenance,#N/A,#N/A," 6,535.15 ",202032,C.10775
02/09/2022,ZZH712359,1,8233,MGB Plastics Ltd,182020,Environmental Services Waste Management,Waste Management Equipment,Services to Place,Wheelie Bins," 15,456.00 ",400401,10864
02/09/2022,ZZH712362,1,8917,Asda Pharmacy,320000,Social Community Care Supplies & Services  ,Care Payments,Services to People,PH-Sexual Health LES," 5,000.00 ",530342,12748
02/09/2022,ZZH712369,1,7030,MANCHESTER CITY COUNCIL SHARED,261400,Human Resources Temporary & Agency Staff ,Agency Staff,Services to People,RAA Adoption Count," 99,000.00 ",100290,12957
02/09/2022,ZZH712370,1,7030,MANCHESTER CITY COUNCIL SHARED,261400,Human Resources Temporary & Agency Staff ,Agency Staff,Services to People,RAA Adoption Count," 100,000.00 ",100290,12957
02/09/2022,ZZH712371,1,4369,Pennine Care NHS Trust,310000,Healthcare  ,Third party payments - Public Sector,Services to People,SC - CAHMS," 146,986.00 ",500402,11500
05/09/2022,ZZH712391,1,15102,Westwood Homecare Ltd (NW),320000,Social Community Care Supplies & Services  ,Care Payments,Services to People,DP - Respite," 23,812.00 ",530335,11513
05/09/2022,ZZH712392,1,15102,Westwood Homecare Ltd (NW),320000,Social Community Care Supplies & Services  ,Care Payments,Services to People,DP - Respite," 50,000.00 ",530335,11513
05/09/2022,ZZH712393,1,15102,Westwood Homecare Ltd (NW),320000,Social Community Care Supplies & Services  ,Care Payments,Services to People,DP - Respite," 23,811.74 ",530335,11513
05/09/2022,ZZH712395,1,15102,Westwood Homecare Ltd (NW),320000,Social Community Care Supplies & Services  ,Care Payments,Services to People,DP - Respite," 31,749.00 ",530335,11513
05/09/2022,ZZH712400,1,14734,The Tutor Trust,150000,Consultancy   ,Professional Fees,Services to People,SI M&B Grant," 5,102.50 ",401007,13041
05/09/2022,ZZH712433,1,10289,STOCKPORT SAMARITANS,999999,Social Community Care Supplies & Services  ,Service Contract Payments,Services to People,PH-Mental Wellbeing," 10,000.00 ",561704,12734
06/09/2022,ZZH712470,1,15328,Elite Consulting & Training,150000,Consultancy   ,Professional Fees,Services to People,Adults Management," 29,250.00 ",401007,11873
06/09/2022,ZZH712471,1,3529,Totally Local Company Ltd,240000,Horticultural  ,Grounds Maintenance,#N/A,#N/A," 29,032.70 ",202032,C.10775
06/09/2022,ZZH712474,1,6967,Wilde Consultants Ltd,150000,Consultancy   ,Professional Fees,Services to Place,MS Design Frnwk Staf," 42,240.00 ",401020,13107
06/09/2022,ZZH712475,1,6967,Wilde Consultants Ltd,150000,Consultancy   ,Professional Fees,Services to Place,MS Design Frnwk Staf," 53,760.00 ",401020,13107
06/09/2022,ZZH712480,1,2628,North West Employers,261500,Human Resources Training & Conferences ,Fees and Charges,Services to People,Adults Management," 7,160.00 ",401024,11873
07/09/2022,ZZH712541,1,15115,Alliance Leisure Services Limi,390000,"Works - Construction, Repair & Maintenance  ",Repairs and Maintenance,Services to Place,Leisure Level Up Fun," 11,610.00 ",200123,13124
07/09/2022,ZZH712551,1,8010,GROUNDWORK & LEISURE SERVIC,240000,Horticultural  ,Grounds Maintenance,#N/A,#N/A," 7,865.00 ",202032,C.10775
07/09/2022,ZZH712552,1,10609,Bendcrete Leisure,240000,Horticultural  ,Grounds Maintenance,#N/A,#N/A," 80,000.00 ",202032,C.10775
08/09/2022,ZZH712578,1,6967,Wilde Consultants Ltd,150000,Consultancy   ,Professional Fees,Services to Place,MS Design Frnwk Staf," 45,360.00 ",401020,13107
08/09/2022,ZZH712579,1,6748,GEORGE COX & SONS LTD,390000,Supplies and services,Supplies and services,#N/A,#N/A," 6,403.30 ",401600,C.01166.203
08/09/2022,ZZH712586,1,757,Transport for Greater Manchest,170000,Education  ,Welfare Payments,Services to People,SS-FreeSclTrans-Pri, 630.50 ,530102,10429
08/09/2022,ZZH712586,2,757,Transport for Greater Manchest,170000,Education  ,Welfare Payments,Services to People,SS-FreeSclTrans-Sec," 72,570.55 ",530102,10430
08/09/2022,ZZH712589,1,2039,Stockport Womens Centre,390000,Supplies and services,Supplies and services,Services to People,Domestic Abuse Bill," 31,159.00 ",401600,13111
08/09/2022,ZZH712592,1,15110,WCL (UK) Ltd T/A Everything IC,270000,Information Communication Technology  ,Information and Communications Technology,Corporate and Support Services,IT Infrastructure," 18,286.40 ",402001,11324
08/09/2022,ZZH712592,2,15110,WCL (UK) Ltd T/A Everything IC,270000,Information Communication Technology  ,Information and Communications Technology,Corporate and Support Services,IT Infrastructure," 31,428.80 ",402001,11324
08/09/2022,ZZH712592,3,15110,WCL (UK) Ltd T/A Everything IC,270000,Information Communication Technology  ,Information and Communications Technology,Corporate and Support Services,IT Infrastructure," 15,121.22 ",402001,11324
08/09/2022,ZZH712592,4,15110,WCL (UK) Ltd T/A Everything IC,270000,Information Communication Technology  ,Information and Communications Technology,Corporate and Support Services,IT Infrastructure," 1,978.70 ",402001,11324
08/09/2022,ZZH712592,5,15110,WCL (UK) Ltd T/A Everything IC,270000,Information Communication Technology  ,Information and Communications Technology,Corporate and Support Services,IT Infrastructure," 1,109.76 ",402001,11324
08/09/2022,ZZH712592,6,15110,WCL (UK) Ltd T/A Everything IC,270000,Information Communication Technology  ,Information and Communications Technology,Corporate and Support Services,IT Infrastructure," 15,744.24 ",402001,11324
08/09/2022,ZZH712592,7,15110,WCL (UK) Ltd T/A Everything IC,270000,Information Communication Technology  ,Information and Communications Technology,Corporate and Support Services,IT Infrastructure," 29,326.56 ",402001,11324
08/09/2022,ZZH712592,8,15110,WCL (UK) Ltd T/A Everything IC,270000,Information Communication Technology  ,Information and Communications Technology,Corporate and Support Services,IT Infrastructure," 10,028.52 ",402001,11324
08/09/2022,ZZH712592,9,15110,WCL (UK) Ltd T/A Everything IC,270000,Information Communication Technology  ,Information and Communications Technology,Corporate and Support Services,IT Infrastructure, 691.80 ,402001,11324
08/09/2022,ZZH712592,10,15110,WCL (UK) Ltd T/A Everything IC,270000,Information Communication Technology  ,Information and Communications Technology,Corporate and Support Services,IT Infrastructure," 4,591.80 ",402001,11324
08/09/2022,ZZH712592,11,15110,WCL (UK) Ltd T/A Everything IC,270000,Information Communication Technology  ,Information and Communications Technology,Corporate and Support Services,IT Infrastructure, 807.60 ,402001,11324
08/09/2022,ZZH712592,12,15110,WCL (UK) Ltd T/A Everything IC,270000,Information Communication Technology  ,Information and Communications Technology,Corporate and Support Services,IT Infrastructure," 1,836.72 ",402001,11324
08/09/2022,ZZH712592,13,15110,WCL (UK) Ltd T/A Everything IC,270000,Information Communication Technology  ,Information and Communications Technology,Corporate and Support Services,IT Infrastructure," 28,938.80 ",402001,11324
08/09/2022,ZZH712592,14,15110,WCL (UK) Ltd T/A Everything IC,270000,Information Communication Technology  ,Information and Communications Technology,Corporate and Support Services,IT Infrastructure," 14,244.88 ",402001,11324
08/09/2022,ZZH712592,15,15110,WCL (UK) Ltd T/A Everything IC,270000,Information Communication Technology  ,Information and Communications Technology,Corporate and Support Services,IT Infrastructure, 775.52 ,402001,11324
08/09/2022,ZZH712592,16,15110,WCL (UK) Ltd T/A Everything IC,270000,Information Communication Technology  ,Information and Communications Technology,Corporate and Support Services,IT Infrastructure," 3,061.20 ",402001,11324
08/09/2022,ZZH712592,17,15110,WCL (UK) Ltd T/A Everything IC,270000,Information Communication Technology  ,Information and Communications Technology,Corporate and Support Services,IT Infrastructure, 538.40 ,402001,11324
08/09/2022,ZZH712592,18,15110,WCL (UK) Ltd T/A Everything IC,270000,Information Communication Technology  ,Information and Communications Technology,Corporate and Support Services,IT Infrastructure," 1,224.48 ",402001,11324
08/09/2022,ZZH712592,19,15110,WCL (UK) Ltd T/A Everything IC,270000,Information Communication Technology  ,Information and Communications Technology,Corporate and Support Services,IT Infrastructure," 7,653.00 ",402001,11324
08/09/2022,ZZH712592,20,15110,WCL (UK) Ltd T/A Everything IC,270000,Information Communication Technology  ,Information and Communications Technology,Corporate and Support Services,IT Infrastructure," 7,755.04 ",402001,11324
08/09/2022,ZZH712592,21,15110,WCL (UK) Ltd T/A Everything IC,270000,Information Communication Technology  ,Information and Communications Technology,Corporate and Support Services,IT Infrastructure," 13,371.36 ",402001,11324
08/09/2022,ZZH712592,22,15110,WCL (UK) Ltd T/A Everything IC,270000,Information Communication Technology  ,Information and Communications Technology,Corporate and Support Services,IT Infrastructure," 2,040.80 ",402001,11324
08/09/2022,ZZH712592,23,15110,WCL (UK) Ltd T/A Everything IC,270000,Information Communication Technology  ,Information and Communications Technology,Corporate and Support Services,IT Infrastructure," 6,699.98 ",402001,11324
08/09/2022,ZZH712592,24,15110,WCL (UK) Ltd T/A Everything IC,270000,Information Communication Technology  ,Information and Communications Technology,Corporate and Support Services,IT Infrastructure," 15,042.78 ",402001,11324
08/09/2022,ZZH712592,25,15110,WCL (UK) Ltd T/A Everything IC,270000,Information Communication Technology  ,Information and Communications Technology,Corporate and Support Services,IT Infrastructure, 826.56 ,402001,11324
08/09/2022,ZZH712592,26,15110,WCL (UK) Ltd T/A Everything IC,270000,Information Communication Technology  ,Information and Communications Technology,Corporate and Support Services,IT Infrastructure," 2,571.48 ",402001,11324
08/09/2022,ZZH712592,27,15110,WCL (UK) Ltd T/A Everything IC,270000,Information Communication Technology  ,Information and Communications Technology,Corporate and Support Services,IT Infrastructure," 6,714.20 ",402001,11324
08/09/2022,ZZH712592,28,15110,WCL (UK) Ltd T/A Everything IC,270000,Information Communication Technology  ,Information and Communications Technology,Corporate and Support Services,IT Infrastructure, 121.40 ,402001,11324
08/09/2022,ZZH712592,29,15110,WCL (UK) Ltd T/A Everything IC,270000,Information Communication Technology  ,Information and Communications Technology,Corporate and Support Services,IT Infrastructure," 1,019.40 ",402001,11324
08/09/2022,ZZH712592,30,15110,WCL (UK) Ltd T/A Everything IC,270000,Information Communication Technology  ,Information and Communications Technology,Corporate and Support Services,IT Infrastructure," 2,857.20 ",402001,11324
08/09/2022,ZZH712603,1,3529,Totally Local Company Ltd,390000,Supplies and services,Supplies and services,#N/A,#N/A," 69,635.04 ",401600,C.01455.203
08/09/2022,ZZH712604,1,14666,Reflex Systems Limited,210000,Furniture & Soft Furnishings  ,Furniture and Equipment,#N/A,#N/A," 139,179.16 ",400115,13194
08/09/2022,ZZH712608,1,3529,Totally Local Company Ltd,181800,Environmental Services Technical Equipment ,Furniture and Equipment,#N/A,#N/A," 6,322.27 ",400110,C.01190.202
08/09/2022,ZZH712609,1,1694,Network Rail Infras'ture Ltd,390000,Supplies and services,Supplies and services,#N/A,#N/A," 6,651.21 ",401600,C.00620.201
08/09/2022,ZZH712609,2,1694,Network Rail Infras'ture Ltd,390000,Supplies and services,Supplies and services,#N/A,#N/A," 4,551.26 ",401600,C.00620.201
08/09/2022,ZZH712609,3,1694,Network Rail Infras'ture Ltd,390000,Supplies and services,Supplies and services,#N/A,#N/A," 4,551.26 ",401600,C.00620.201
08/09/2022,ZZH712609,4,1694,Network Rail Infras'ture Ltd,390000,Supplies and services,Supplies and services,#N/A,#N/A," 4,551.26 ",401600,C.00620.201
08/09/2022,ZZH712609,5,1694,Network Rail Infras'ture Ltd,390000,Supplies and services,Supplies and services,#N/A,#N/A," 4,551.26 ",401600,C.00620.201
08/09/2022,ZZH712616,1,10339,The Proud Trust,999999,Fees and Charges,Fees and Charges,Services to People,CYP PH Contracts," 9,652.00 ",402404,13034
08/09/2022,ZZH712627,1,3529,Totally Local Company Ltd,390000,Supplies and services,Supplies and services,#N/A,#N/A," 9,769.25 ",401600,C.00880.203
08/09/2022,ZZH712636,1,8759,VAISALA  LTD,390000,"Works - Construction, Repair & Maintenance  ",Repairs and Maintenance,Services to Place,Gritting," 13,418.16 ",200123,12033
08/09/2022,ZZH712637,1,6116,Atkins Limited,150000,Consultancy   ,Professional Fees,#N/A,#N/A," 86,170.00 ",401007,C.01326.201
09/09/2022,ZZH712655,1,1113,Maysand Ltd,390000,"Works - Construction, Repair & Maintenance  ",Repairs and Maintenance,Services to Place,Special Project 11," 91,495.37 ",200123,11277
09/09/2022,ZZH712673,1,815,University of Manchester,150000,Consultancy   ,Professional Fees,Services to People,SI M&B Grant," 8,880.00 ",401007,13041
09/09/2022,ZZH712683,1,8423,SMS Coaching Limited,261500,Human Resources Training & Conferences ,Fees and Charges,Services to People,SEN Independent Sch," 38,000.00 ",401024,10372
09/09/2022,ZZH712684,1,8423,SMS Coaching Limited,261500,Human Resources Training & Conferences ,Fees and Charges,Services to People,SEN Independent Sch," 31,573.25 ",401024,10372
09/09/2022,ZZH712685,1,12180,Acorn Care and Education,261500,Human Resources Training & Conferences ,Fees and Charges,Services to People,SEN Independent Sch," 30,354.25 ",401024,10372
09/09/2022,ZZH712696,1,9715,NHS GREATER MANCHESTER INTEGRA,#N/A,#N/A,#N/A,Services to People,PH - COMF Grant," 19,790.00 ",400999,13097
13/09/2022,ZZH712772,1,13223,A Pacini Ltd,261400,Human Resources Temporary & Agency Staff ,Agency Staff,Services to Place,Property Client Acct," 5,010.00 ",100290,12328
13/09/2022,ZZH712824,1,3529,Totally Local Company Ltd,181800,Environmental Services Technical Equipment ,Furniture and Equipment,#N/A,#N/A," 5,130.81 ",400110,C.01190.202
13/09/2022,ZZH712830,1,7030,MANCHESTER CITY COUNCIL SHARED,261400,Human Resources Temporary & Agency Staff ,Agency Staff,Services to People,Partners In Practice," 110,000.00 ",100290,12997
14/09/2022,ZZH712891,1,10384,Phillip Cleaton - Locksmith,150000,Consultancy   ,Professional Fees,Services to People,Domestic Abuse," 17,810.00 ",401020,12852
14/09/2022,ZZH712894,1,10897,Three Sixty SHG Ltd,390000,"Works - Construction, Repair & Maintenance  ",Repairs and Maintenance,Services to Place,Garages & Shops IE," 29,730.65 ",200123,12820
14/09/2022,ZZH712935,1,13874,HUMAN SUPPORT GROUP LTD,320000,Social Community Care Supplies & Services  ,Care Payments,Services to People,Edgeley ECH," 200,000.00 ",530332,13049
15/09/2022,ZZH712967,1,1586,Verint Systems UK Limited;,270000,Information Communication Technology  ,Information and Communications Technology,Corporate and Support Services,IT Systems," 23,200.00 ",402001,12503
15/09/2022,ZZH712971,1,3529,Totally Local Company Ltd,390000,Supplies and services,Supplies and services,#N/A,#N/A," 14,135.00 ",401600,C.01551.201
15/09/2022,ZZH712972,1,6967,Wilde Consultants Ltd,150000,Consultancy   ,Professional Fees,Services to Place,Network Assets Staff," 26,418.00 ",401007,11959
15/09/2022,ZZH712975,1,6967,Wilde Consultants Ltd,150000,Consultancy   ,Professional Fees,Services to Place,Network Assets Staff," 26,418.00 ",401007,11959
15/09/2022,ZZH712991,1,757,Transport for Greater Manchest,270000,Information Communication Technology  ,Information and Communications Technology,Services to Place,Car Parks Admin," 23,835.54 ",402041,10005
15/09/2022,ZZH712992,1,14196,Grassroots Recruitment Ltd,290000,Arts & Leisure Services  ,Publicity and Promotion,Services to Place,14-19 -Co-ordination," 6,600.00 ",401801,12534
15/09/2022,ZZH712994,1,6967,Wilde Consultants Ltd,150000,Consultancy   ,Professional Fees,Services to Place,Design Frmwk Staff," 70,150.00 ",401020,11965
15/09/2022,ZZH712995,1,6967,Wilde Consultants Ltd,150000,Consultancy   ,Professional Fees,Services to Place,Design Frmwk Staff," 84,180.00 ",401020,11965
15/09/2022,ZZH713002,1,178,Trafford Council,999999,Third party payments - Public Sector,Third party payments - Public Sector,Corporate and Support Services,U-Probation Serv-Gen," 9,179.34 ",500303,10966
15/09/2022,ZZH713003,1,35,CBC Computer Systems Ltd,270000,Information Communication Technology  ,Information and Communications Technology,Services to People,SC - Care Matters," 5,950.00 ",402001,11768
16/09/2022,ZZH713032,1,15082,Stockport Active CIC,320000,Social Community Care Supplies & Services  ,Third party payments - Private/Voluntary Sector,Services to Place,Sports Trust," 1,000,000.00 ",402403,11294
16/09/2022,ZZH713049,1,1104,Age UK Stockport,150000,Consultancy   ,Professional Fees,Services to People,PH-Local Pilot," 13,487.50 ",401020,13047
16/09/2022,ZZH713050,1,1816,Seashell Trust,150000,Consultancy   ,Professional Fees,Services to People,PH-Local Pilot," 22,207.65 ",401020,13047
16/09/2022,ZZH713051,1,15082,Stockport Active CIC,150000,Consultancy   ,Professional Fees,Services to People,PH-Local Pilot," 18,267.50 ",401020,13047
16/09/2022,ZZH713064,1,6967,Wilde Consultants Ltd,150000,Consultancy   ,Professional Fees,Services to Place,Network Management," 44,460.00 ",401020,13179
17/09/2022,ZZH713069,1,6967,Wilde Consultants Ltd,150000,Consultancy   ,Professional Fees,Services to Place,Design Frmwk Staff," 87,880.00 ",401020,11965
20/09/2022,ZZH713084,1,5214,WSP GROUP PLC,150000,Consultancy   ,Professional Fees,Services to Place,MS Design Frnwk Staf," 43,032.00 ",401020,13107
20/09/2022,ZZH713085,1,5214,WSP GROUP PLC,150000,Consultancy   ,Professional Fees,Services to Place,MS Design Frnwk Staf," 6,180.00 ",401020,13107
20/09/2022,ZZH713099,1,12269,PENARTH GROUP,261500,Human Resources Training & Conferences ,Fees and Charges,Services to People,SEN Independent Sch," 27,377.82 ",401024,10372
20/09/2022,ZZH713102,1,1978,Lancashire County Council,170000,Education  ,Third party payments - Public Sector,Services to People,OLA pupils," 12,527.00 ",500304,10371
20/09/2022,ZZH713103,1,12608,Liquidlogic Limited,270000,Information Communication Technology  ,Information and Communications Technology,Services to People,SEN Specific support," 13,950.00 ",402001,10300
20/09/2022,ZZH713104,1,14934,Better Communications CIC,150000,Consultancy   ,Professional Fees,Services to People,SEN Specific support," 24,375.00 ",401020,10300
20/09/2022,ZZH713104,2,14934,Better Communications CIC,150000,Consultancy   ,Professional Fees,Services to People,SEN Specific support," 23,297.25 ",401020,10300
20/09/2022,ZZH713107,1,14585,Trinity Church of England High,170000,Education  ,Third party payments - Public Sector,Services to People,OLA pupils," 7,814.00 ",500304,10371
20/09/2022,ZZH713108,1,11660,Signis Limited,200000,Financial Services  ,Fees and Charges,Services to People,Dir-Directorate," 9,030.00 ",402401,10737
20/09/2022,ZZH713109,1,14677,Melland High School BFET,170000,Education  ,Third party payments - Public Sector,Services to People,OLA pupils," 7,283.00 ",500304,10371
21/09/2022,ZZH713140,1,3529,Totally Local Company Ltd,130000,Cleaning & Janitorial  ,Cleaning,Services to Place,Contin Educ Service," 11,883.15 ",201602,10511
21/09/2022,ZZH713146,1,9126,Dr Mathewson,320000,Social Community Care Supplies & Services  ,Care Payments,Services to People,PH-Healthcare," 2,738.00 ",530348,12735
21/09/2022,ZZH713146,2,9126,Dr Mathewson,320000,Social Community Care Supplies & Services  ,Care Payments,Services to People,PH-Lifestyles," 1,085.00 ",530348,12737
21/09/2022,ZZH713146,3,9126,Dr Mathewson,999999,Social Community Care Supplies & Services  ,Service Contract Payments,Services to People,PH-Sexual Health LES, 617.00 ,561704,12748
21/09/2022,ZZH713146,4,9126,Dr Mathewson,320000,Social Community Care Supplies & Services  ,Care Payments,Services to People,PH-Sexual Health LES," 2,004.00 ",530348,12748
21/09/2022,ZZH713163,1,12719,We Care NW Ltd,150000,Consultancy   ,Professional Fees,Services to People,CADA grant," 5,500.00 ",401020,13032
21/09/2022,ZZH713170,1,7025,CBRE Limited,150000,Consultancy   ,Professional Fees,Services to Place,Merseyway Shop Ctre," 3,000.00 ",401020,12866
21/09/2022,ZZH713170,2,7025,CBRE Limited,150000,Consultancy   ,Professional Fees,Services to Place,Merseyway Shop Ctre," 2,500.00 ",401020,12866
21/09/2022,ZZH713170,3,7025,CBRE Limited,150000,Consultancy   ,Professional Fees,Services to Place,Merseyway Shop Ctre," 1,500.00 ",401020,12866
21/09/2022,ZZH713170,4,7025,CBRE Limited,150000,Consultancy   ,Professional Fees,Services to Place,Merseyway Shop Ctre," 7,500.00 ",401020,12866
21/09/2022,ZZH713170,5,7025,CBRE Limited,150000,Consultancy   ,Professional Fees,Services to Place,Merseyway Shop Ctre," 11,250.00 ",401020,12866
21/09/2022,ZZH713175,1,815,University of Manchester,261500,Human Resources Training & Conferences ,Fees and Charges,Services to People,SEN Incl - Psycholog," 31,900.00 ",401024,10751
22/09/2022,ZZH713191,1,3529,Totally Local Company Ltd,390000,Supplies and services,Supplies and services,#N/A,#N/A," 11,113.00 ",401600,C.00880.203
22/09/2022,ZZH713207,1,15276,Strive Academy Limited,261500,Human Resources Training & Conferences ,Fees and Charges,Services to People,Edgeley Client Spend," 6,300.00 ",401024,13146
22/09/2022,ZZH713223,1,12337,Priory Education Services - Ol,320000,Social Community Care Supplies & Services  ,Third party payments - Private/Voluntary Sector,Services to People,Top-up Fund Post 16," 67,093.74 ",402403,12724
22/09/2022,ZZH713225,1,3529,Totally Local Company Ltd,390000,Supplies and services,Supplies and services,#N/A,#N/A," 5,490.87 ",401600,C.01456.203
22/09/2022,ZZH713233,1,3529,Totally Local Company Ltd,390000,Supplies and services,Supplies and services,#N/A,#N/A," 17,477.96 ",401600,C.01455.203
23/09/2022,ZZH713241,1,7025,CBRE Limited,390000,Supplies and services,Supplies and services,#N/A,#N/A," 213,696.00 ",401600,C.00621.201
23/09/2022,ZZH713256,1,8918,Boots (Stockport),320000,Social Community Care Supplies & Services  ,Care Payments,Services to People,PH-Sexual Health LES," 18,000.00 ",530342,12748
23/09/2022,ZZH713263,1,14414,MEADOWS CARE LTD,261500,Human Resources Training & Conferences ,Fees and Charges,Services to People,SEN Independent Sch," 27,000.00 ",401024,10372
23/09/2022,ZZH713264,1,8423,SMS Coaching Limited,261500,Human Resources Training & Conferences ,Fees and Charges,Services to People,SEN Independent Sch," 34,000.00 ",401024,10372
23/09/2022,ZZH713287,1,6748,GEORGE COX & SONS LTD,390000,Supplies and services,Supplies and services,#N/A,#N/A," 491,036.41 ",401600,C.01456.203
23/09/2022,ZZH713288,1,13041,YARAN NORTHWEST CIC,320000,Social Community Care Supplies & Services  ,Third party payments - Private/Voluntary Sector,Services to Place,Afghan Evacuee Costs," 24,000.00 ",500530,13149
26/09/2022,ZZH713303,1,12180,Acorn Care and Education,261500,Human Resources Training & Conferences ,Fees and Charges,Services to People,SEN Independent Sch," 66,166.67 ",401024,10372
26/09/2022,ZZH713310,1,757,Transport for Greater Manchest,320000,Social Community Care Supplies & Services  ,Third party payments - Private/Voluntary Sector,#N/A,#N/A," 900,000.00 ",402403,C.10997.003
26/09/2022,ZZH713327,1,1252,Hearing Products Int Ltd,390000,"Works - Construction, Repair & Maintenance  ",Capital Expenditure - Works,Services to People,"Aids, Equip & Maint"," 2,970.00 ",200301,11658
26/09/2022,ZZH713327,2,1252,Hearing Products Int Ltd,390000,"Works - Construction, Repair & Maintenance  ",Capital Expenditure - Works,Services to People,"Aids, Equip & Maint"," 1,900.00 ",200301,11658
26/09/2022,ZZH713327,3,1252,Hearing Products Int Ltd,390000,"Works - Construction, Repair & Maintenance  ",Capital Expenditure - Works,Services to People,"Aids, Equip & Maint", 540.00 ,200301,11658
26/09/2022,ZZH713360,1,82,Marwood Electrical Company Ltd,390000,"Works - Construction, Repair & Maintenance  ",Capital Expenditure - Works,#N/A,#N/A," 19,238.00 ",200304,C.01200.203
26/09/2022,ZZH713369,1,7889,Thomas Kershaw Builders,390000,"Works - Construction, Repair & Maintenance  ",Repairs and Maintenance,#N/A,#N/A," 73,298.00 ",200123,C.11506
26/09/2022,ZZH713370,1,12384,Synergy Stockport,320000,Social Community Care Supplies & Services  ,Third party payments - Private/Voluntary Sector,Services to People,Community Champions," 15,000.00 ",402403,13103
26/09/2022,ZZH713370,2,12384,Synergy Stockport,320000,Social Community Care Supplies & Services  ,Third party payments - Private/Voluntary Sector,Services to People,Community Champions," 15,000.00 ",402403,13103
26/09/2022,ZZH713370,3,12384,Synergy Stockport,320000,Social Community Care Supplies & Services  ,Third party payments - Private/Voluntary Sector,Services to People,Community Champions," 10,000.00 ",402403,13103
26/09/2022,ZZH713376,1,14466,Freshworks,270000,Information Communication Technology  ,Information and Communications Technology,Corporate and Support Services,IT Main," 42,100.80 ",402010,11073
27/09/2022,ZZH713405,1,12816,Eversheds Sutherland (Internat,390000,Supplies and services,Supplies and services,#N/A,#N/A," 6,000.00 ",401600,C.00845.203
27/09/2022,ZZH713407,1,12816,Eversheds Sutherland (Internat,390000,Supplies and services,Supplies and services,#N/A,#N/A," 13,623.00 ",401600,C.00845.203
27/09/2022,ZZH713419,1,7025,CBRE Limited,150000,Consultancy   ,Professional Fees,Services to Place,Community Buildings," 10,000.00 ",401020,11392
27/09/2022,ZZH713420,1,7025,CBRE Limited,150000,Consultancy   ,Professional Fees,Services to Place,Community Buildings," 5,860.00 ",401020,11392
27/09/2022,ZZH713422,1,6829,SINGLETON CLAMP & PARTN,150000,Consultancy   ,Professional Fees,Services to Place,Community Buildings," 5,950.00 ",401020,11392
27/09/2022,ZZH713434,1,8106,Tarmac Trading Ltd,390000,Supplies and services,Supplies and services,#N/A,#N/A," 57,593.67 ",401600,C.01456.203
27/09/2022,ZZH713445,1,6748,GEORGE COX & SONS LTD,390000,Supplies and services,Supplies and services,#N/A,#N/A," 16,293.78 ",401600,C.01521.203
27/09/2022,ZZH713469,1,3529,Totally Local Company Ltd,390000,Supplies and services,Supplies and services,Services to Place,Climate Change Now," 7,700.00 ",401600,13112
27/09/2022,ZZH713471,1,780,J A Jones + Sons,181800,Environmental Services Technical Equipment ,Furniture and Equipment,Services to Place,Climate Change Now," 4,900.00 ",400110,13112
27/09/2022,ZZH713471,2,780,J A Jones + Sons,181800,Environmental Services Technical Equipment ,Furniture and Equipment,Services to Place,Climate Change Now," 5,460.00 ",400110,13112
27/09/2022,ZZH713471,3,780,J A Jones + Sons,181800,Environmental Services Technical Equipment ,Furniture and Equipment,Services to Place,Climate Change Now, 588.00 ,400110,13112
27/09/2022,ZZH713471,4,780,J A Jones + Sons,181800,Environmental Services Technical Equipment ,Furniture and Equipment,Services to Place,Climate Change Now, 312.00 ,400110,13112
27/09/2022,ZZH713471,5,780,J A Jones + Sons,181800,Environmental Services Technical Equipment ,Furniture and Equipment,Services to Place,Climate Change Now, 384.00 ,400110,13112
27/09/2022,ZZH713471,6,780,J A Jones + Sons,181800,Environmental Services Technical Equipment ,Furniture and Equipment,Services to Place,Climate Change Now, 256.00 ,400110,13112
27/09/2022,ZZH713471,7,780,J A Jones + Sons,181800,Environmental Services Technical Equipment ,Furniture and Equipment,Services to Place,Climate Change Now, 190.00 ,400110,13112
27/09/2022,ZZH713471,8,780,J A Jones + Sons,181800,Environmental Services Technical Equipment ,Furniture and Equipment,Services to Place,Climate Change Now, 172.00 ,400110,13112
27/09/2022,ZZH713471,9,780,J A Jones + Sons,181800,Environmental Services Technical Equipment ,Furniture and Equipment,Services to Place,Climate Change Now," 1,512.00 ",400110,13112
27/09/2022,ZZH713471,10,780,J A Jones + Sons,181800,Environmental Services Technical Equipment ,Furniture and Equipment,Services to Place,Climate Change Now, 468.00 ,400110,13112
27/09/2022,ZZH713471,11,780,J A Jones + Sons,181800,Environmental Services Technical Equipment ,Furniture and Equipment,Services to Place,Climate Change Now," 23,814.00 ",400110,13112
27/09/2022,ZZH713471,12,780,J A Jones + Sons,181800,Environmental Services Technical Equipment ,Furniture and Equipment,Services to Place,Climate Change Now, 236.00 ,400110,13112
27/09/2022,ZZH713471,13,780,J A Jones + Sons,181800,Environmental Services Technical Equipment ,Furniture and Equipment,Services to Place,Climate Change Now, 624.00 ,400110,13112
27/09/2022,ZZH713471,14,780,J A Jones + Sons,181800,Environmental Services Technical Equipment ,Furniture and Equipment,Services to Place,Climate Change Now," 7,622.00 ",400110,13112
27/09/2022,ZZH713471,15,780,J A Jones + Sons,181800,Environmental Services Technical Equipment ,Furniture and Equipment,Services to Place,Climate Change Now, 336.00 ,400110,13112
27/09/2022,ZZH713471,16,780,J A Jones + Sons,181800,Environmental Services Technical Equipment ,Furniture and Equipment,Services to Place,Climate Change Now, 84.00 ,400110,13112
27/09/2022,ZZH713471,17,780,J A Jones + Sons,181800,Environmental Services Technical Equipment ,Furniture and Equipment,Services to Place,Climate Change Now, 168.00 ,400110,13112
27/09/2022,ZZH713471,18,780,J A Jones + Sons,181800,Environmental Services Technical Equipment ,Furniture and Equipment,Services to Place,Climate Change Now, 228.00 ,400110,13112
27/09/2022,ZZH713471,19,780,J A Jones + Sons,181800,Environmental Services Technical Equipment ,Furniture and Equipment,Services to Place,Climate Change Now," 1,218.00 ",400110,13112
27/09/2022,ZZH713472,1,780,J A Jones + Sons,181800,Environmental Services Technical Equipment ,Furniture and Equipment,Services to Place,Climate Change Now," 2,772.00 ",400110,13112
27/09/2022,ZZH713472,2,780,J A Jones + Sons,181800,Environmental Services Technical Equipment ,Furniture and Equipment,Services to Place,Climate Change Now," 1,840.00 ",400110,13112
27/09/2022,ZZH713472,3,780,J A Jones + Sons,181800,Environmental Services Technical Equipment ,Furniture and Equipment,Services to Place,Climate Change Now," 7,140.00 ",400110,13112
27/09/2022,ZZH713472,4,780,J A Jones + Sons,181800,Environmental Services Technical Equipment ,Furniture and Equipment,Services to Place,Climate Change Now," 6,808.50 ",400110,13112
27/09/2022,ZZH713472,5,780,J A Jones + Sons,181800,Environmental Services Technical Equipment ,Furniture and Equipment,Services to Place,Climate Change Now, 128.00 ,400110,13112
27/09/2022,ZZH713472,6,780,J A Jones + Sons,181800,Environmental Services Technical Equipment ,Furniture and Equipment,Services to Place,Climate Change Now," 10,146.00 ",400110,13112
27/09/2022,ZZH713472,7,780,J A Jones + Sons,181800,Environmental Services Technical Equipment ,Furniture and Equipment,Services to Place,Climate Change Now, 711.00 ,400110,13112
27/09/2022,ZZH713472,8,780,J A Jones + Sons,181800,Environmental Services Technical Equipment ,Furniture and Equipment,Services to Place,Climate Change Now," 5,544.00 ",400110,13112
27/09/2022,ZZH713472,9,780,J A Jones + Sons,181800,Environmental Services Technical Equipment ,Furniture and Equipment,Services to Place,Climate Change Now," 4,000.00 ",400110,13112
27/09/2022,ZZH713472,10,780,J A Jones + Sons,181800,Environmental Services Technical Equipment ,Furniture and Equipment,Services to Place,Climate Change Now," 7,644.00 ",400110,13112
27/09/2022,ZZH713472,11,780,J A Jones + Sons,181800,Environmental Services Technical Equipment ,Furniture and Equipment,Services to Place,Climate Change Now," 2,508.00 ",400110,13112
27/09/2022,ZZH713472,12,780,J A Jones + Sons,181800,Environmental Services Technical Equipment ,Furniture and Equipment,Services to Place,Climate Change Now, 390.00 ,400110,13112
27/09/2022,ZZH713472,13,780,J A Jones + Sons,181800,Environmental Services Technical Equipment ,Furniture and Equipment,Services to Place,Climate Change Now, 876.00 ,400110,13112
27/09/2022,ZZH713472,14,780,J A Jones + Sons,181800,Environmental Services Technical Equipment ,Furniture and Equipment,Services to Place,Climate Change Now, 312.00 ,400110,13112
27/09/2022,ZZH713472,15,780,J A Jones + Sons,181800,Environmental Services Technical Equipment ,Furniture and Equipment,Services to Place,Climate Change Now," 2,214.00 ",400110,13112
27/09/2022,ZZH713472,16,780,J A Jones + Sons,181800,Environmental Services Technical Equipment ,Furniture and Equipment,Services to Place,Climate Change Now, 979.00 ,400110,13112
27/09/2022,ZZH713473,1,780,J A Jones + Sons,181800,Environmental Services Technical Equipment ,Furniture and Equipment,Services to Place,Climate Change Now," 1,848.00 ",400110,13112
27/09/2022,ZZH713473,2,780,J A Jones + Sons,181800,Environmental Services Technical Equipment ,Furniture and Equipment,Services to Place,Climate Change Now, 76.50 ,400110,13112
27/09/2022,ZZH713473,3,780,J A Jones + Sons,181800,Environmental Services Technical Equipment ,Furniture and Equipment,Services to Place,Climate Change Now," 6,319.00 ",400110,13112
27/09/2022,ZZH713473,4,780,J A Jones + Sons,181800,Environmental Services Technical Equipment ,Furniture and Equipment,Services to Place,Climate Change Now," 1,764.00 ",400110,13112
27/09/2022,ZZH713473,5,780,J A Jones + Sons,181800,Environmental Services Technical Equipment ,Furniture and Equipment,Services to Place,Climate Change Now," 2,106.00 ",400110,13112
27/09/2022,ZZH713473,6,780,J A Jones + Sons,181800,Environmental Services Technical Equipment ,Furniture and Equipment,Services to Place,Climate Change Now, 390.00 ,400110,13112
27/09/2022,ZZH713473,7,780,J A Jones + Sons,181800,Environmental Services Technical Equipment ,Furniture and Equipment,Services to Place,Climate Change Now, 534.00 ,400110,13112
27/09/2022,ZZH713473,8,780,J A Jones + Sons,181800,Environmental Services Technical Equipment ,Furniture and Equipment,Services to Place,Climate Change Now, 95.00 ,400110,13112
27/09/2022,ZZH713473,9,780,J A Jones + Sons,181800,Environmental Services Technical Equipment ,Furniture and Equipment,Services to Place,Climate Change Now," 7,840.00 ",400110,13112
27/09/2022,ZZH713473,10,780,J A Jones + Sons,181800,Environmental Services Technical Equipment ,Furniture and Equipment,Services to Place,Climate Change Now, 74.00 ,400110,13112
27/09/2022,ZZH713473,11,780,J A Jones + Sons,181800,Environmental Services Technical Equipment ,Furniture and Equipment,Services to Place,Climate Change Now, 312.00 ,400110,13112
27/09/2022,ZZH713473,12,780,J A Jones + Sons,181800,Environmental Services Technical Equipment ,Furniture and Equipment,Services to Place,Climate Change Now, 65.00 ,400110,13112
27/09/2022,ZZH713474,1,780,J A Jones + Sons,181800,Environmental Services Technical Equipment ,Furniture and Equipment,Services to Place,Climate Change Now," 1,176.00 ",400110,13112
27/09/2022,ZZH713474,2,780,J A Jones + Sons,181800,Environmental Services Technical Equipment ,Furniture and Equipment,Services to Place,Climate Change Now," 2,772.00 ",400110,13112
27/09/2022,ZZH713474,3,780,J A Jones + Sons,181800,Environmental Services Technical Equipment ,Furniture and Equipment,Services to Place,Climate Change Now," 1,638.00 ",400110,13112
27/09/2022,ZZH713474,4,780,J A Jones + Sons,181800,Environmental Services Technical Equipment ,Furniture and Equipment,Services to Place,Climate Change Now, 304.00 ,400110,13112
27/09/2022,ZZH713474,5,780,J A Jones + Sons,181800,Environmental Services Technical Equipment ,Furniture and Equipment,Services to Place,Climate Change Now, 78.00 ,400110,13112
27/09/2022,ZZH713474,6,780,J A Jones + Sons,181800,Environmental Services Technical Equipment ,Furniture and Equipment,Services to Place,Climate Change Now, 89.00 ,400110,13112
27/09/2022,ZZH713474,7,780,J A Jones + Sons,181800,Environmental Services Technical Equipment ,Furniture and Equipment,Services to Place,Climate Change Now, 234.00 ,400110,13112
27/09/2022,ZZH713474,8,780,J A Jones + Sons,181800,Environmental Services Technical Equipment ,Furniture and Equipment,Services to Place,Climate Change Now," 12,838.00 ",400110,13112
27/09/2022,ZZH713474,9,780,J A Jones + Sons,181800,Environmental Services Technical Equipment ,Furniture and Equipment,Services to Place,Climate Change Now, 814.00 ,400110,13112
27/09/2022,ZZH713474,10,780,J A Jones + Sons,181800,Environmental Services Technical Equipment ,Furniture and Equipment,Services to Place,Climate Change Now, 382.50 ,400110,13112
27/09/2022,ZZH713474,11,780,J A Jones + Sons,181800,Environmental Services Technical Equipment ,Furniture and Equipment,Services to Place,Climate Change Now," 3,026.00 ",400110,13112
27/09/2022,ZZH713474,12,780,J A Jones + Sons,181800,Environmental Services Technical Equipment ,Furniture and Equipment,Services to Place,Climate Change Now, 65.00 ,400110,13112
27/09/2022,ZZH713484,1,10007,KPMG LLP ADVISORY,201100,Financial Services Audit ,Professional Fees,Corporate and Support Services,U-Misc Fin-Corp Mang," 36,840.00 ",401003,10971
28/09/2022,ZZH713492,1,15359,SEP2 Limited,270000,Information Communication Technology  ,Information and Communications Technology,Corporate and Support Services,IT School," 10,995.00 ",402002,11418
28/09/2022,ZZH713492,2,15359,SEP2 Limited,270000,Information Communication Technology  ,Information and Communications Technology,Corporate and Support Services,IT School, 995.00 ,402002,11418
28/09/2022,ZZH713495,1,1644,Tameside MBC,999999,Fees and Charges,Fees and Charges,Services to People,Contracts SS Manager," 10,208.67 ",401035,11863
28/09/2022,ZZH713504,1,15276,Strive Academy Limited,320000,Social Community Care Supplies & Services  ,Third party payments - Private/Voluntary Sector,Services to People,Top-up Fund Post 16," 69,300.00 ",402403,12724
28/09/2022,ZZH713505,1,10985,Broadstones School Ltd,320000,Social Community Care Supplies & Services  ,Third party payments - Private/Voluntary Sector,Services to People,Top-up Fund Post 16," 23,400.00 ",402403,12724
28/09/2022,ZZH713506,1,12266,Vision Beyond Autism CIC,320000,Social Community Care Supplies & Services  ,Third party payments - Private/Voluntary Sector,Services to People,Top-up Fund Post 16," 11,562.50 ",402403,12724
28/09/2022,ZZH713507,1,15337,Virtual Learning UK / Oxford C,320000,Social Community Care Supplies & Services  ,Third party payments - Private/Voluntary Sector,Services to People,Top-up Fund Post 16," 7,488.00 ",402403,12724
28/09/2022,ZZH713509,1,7025,CBRE Limited,150000,Consultancy   ,Professional Fees,Services to Place,MDC Mayoral DC," 8,184.00 ",401007,13033
28/09/2022,ZZH713529,1,1699,Mary Hare School,261500,Human Resources Training & Conferences ,Fees and Charges,Services to People,SEN NMSS School Fees," 64,904.00 ",401024,12710
28/09/2022,ZZH713537,1,1816,Seashell Trust,210000,Furniture & Soft Furnishings  ,Furniture and Equipment,Services to People,PH-Physical Activity," 11,548.26 ",400115,12834
29/09/2022,ZZH713550,1,3529,Totally Local Company Ltd,390000,Supplies and services,Supplies and services,Services to Place,Nature-Arboriculture," 5,370.00 ",401600,11281
29/09/2022,ZZH713550,2,3529,Totally Local Company Ltd,390000,Supplies and services,Supplies and services,Services to Place,Nature-Arboriculture," 1,554.00 ",401600,11281
29/09/2022,ZZH713550,3,3529,Totally Local Company Ltd,390000,Supplies and services,Supplies and services,Services to Place,Nature-Arboriculture, 680.00 ,401600,11281
29/09/2022,ZZH713550,4,3529,Totally Local Company Ltd,390000,Supplies and services,Supplies and services,Services to Place,Nature-Arboriculture, 920.00 ,401600,11281
29/09/2022,ZZH713550,5,3529,Totally Local Company Ltd,390000,Supplies and services,Supplies and services,Services to Place,Nature-Arboriculture, 480.00 ,401600,11281
29/09/2022,ZZH713550,6,3529,Totally Local Company Ltd,390000,Supplies and services,Supplies and services,Services to Place,Nature-Arboriculture," 5,095.00 ",401600,11281
29/09/2022,ZZH713550,7,3529,Totally Local Company Ltd,390000,Supplies and services,Supplies and services,Services to Place,Nature-Arboriculture," 4,690.00 ",401600,11281
29/09/2022,ZZH713550,8,3529,Totally Local Company Ltd,390000,Supplies and services,Supplies and services,Services to Place,Nature-Arboriculture," 2,987.00 ",401600,11281
29/09/2022,ZZH713550,9,3529,Totally Local Company Ltd,390000,Supplies and services,Supplies and services,Services to Place,Nature-Arboriculture," 2,894.00 ",401600,11281
29/09/2022,ZZH713550,10,3529,Totally Local Company Ltd,390000,Supplies and services,Supplies and services,Services to Place,Nature-Arboriculture," 3,567.00 ",401600,11281
29/09/2022,ZZH713558,1,3529,Totally Local Company Ltd,390000,Supplies and services,Supplies and services,Services to Place,Nature-Arboriculture," 9,360.00 ",401600,11281
29/09/2022,ZZH713560,1,3529,Totally Local Company Ltd,390000,Supplies and services,Supplies and services,Services to Place,Nature-Arboriculture," 6,040.00 ",401600,11281
29/09/2022,ZZH713579,1,3529,Totally Local Company Ltd,390000,Supplies and services,Supplies and services,Services to Place,Nature-Arboriculture," 5,443.00 ",401600,11281
29/09/2022,ZZH713581,1,15322,Mosaic Bramall Ltd,110000,Catering  ,Catering Supplies,Corporate and Support Services,Town Hall Events," 14,464.95 ",400420,11375
30/09/2022,ZZH713626,1,4083,Hulme Hall School,261500,Human Resources Training & Conferences ,Fees and Charges,Services to People,SEN Independent Sch," 10,100.57 ",401024,10372
30/09/2022,ZZH713627,1,4083,Hulme Hall School,261500,Human Resources Training & Conferences ,Fees and Charges,Services to People,SEN Independent Sch," 5,084.60 ",401024,10372
30/09/2022,ZZH713628,1,15353,Manchester Road Academy Primar,170000,Education  ,Third party payments - Public Sector,Services to People,OLA pupils," 13,825.00 ",500304,10371
30/09/2022,ZZH713632,1,9944,Symmetri Kit,181800,Environmental Services Technical Equipment ,Furniture and Equipment,Services to People,SEN Equipment," 11,960.80 ",400110,10324
30/09/2022,ZZH713632,2,9944,Symmetri Kit,181800,Environmental Services Technical Equipment ,Furniture and Equipment,Services to People,SEN Equipment, 212.00 ,400110,10324
30/09/2022,ZZH713632,3,9944,Symmetri Kit,181800,Environmental Services Technical Equipment ,Furniture and Equipment,Services to People,SEN Equipment, 414.00 ,400110,10324
30/09/2022,ZZH713636,1,10985,Broadstones School Ltd,261500,Human Resources Training & Conferences ,Fees and Charges,Services to People,SEN Independent Sch," 19,825.00 ",401024,10372
30/09/2022,ZZH713659,1,3529,Totally Local Company Ltd,181800,Environmental Services Technical Equipment ,Furniture and Equipment,Services to Place,Climate Change Now," 9,695.08 ",400110,13112
30/09/2022,ZZH713662,1,7820,GMCA - GMUTC,390000,"Works - Construction, Repair & Maintenance  ",Capital Expenditure - Works,#N/A,#N/A," 22,708.73 ",200304,C.01551.203
08/07/2022,ZZP710151,1,10897,Three Sixty SHG Ltd,390000,"Works - Construction, Repair & Maintenance  ",Repairs and Maintenance,#N/A,#N/A," 7,247.83 ",200127,C.10393.109
,,,,,,,,,," 17,043,988.91 ",,
